Cogmind - Beta 14 @@@ ROGUE MODE // 2024.09.19 @ 13:32:11 Player: Some Pennies Result: Destroyed by H-88 Terminator with KE Penetrator Performance ------------- Evolutions (8) 4000 Regions Visited (29) 5800 Robots Destroyed (617) 3085 Value Destroyed (29593) 29593 Prototype IDs (95) 1900 Alien Tech Used (7) 1400 Bonus (16216) 16216 TOTAL SCORE: 61994 Bonus ------- Triggered High Security 500 High Alert Combat Kills 6360 Follower Combat Kills 1654 Network Hubs Disabled 600 Met Data Miner 300 Met Imprinter 300 Destroyed Z-Imprinter 1000 Triggered Deep Caves Wall 500 Exposed GOLEM Chamber 500 Met Zhirov 300 Built Enhanced Grunts 300 A7 Reached Mainframe 300 Met R17 at Cetus 500 Met R17 at Research 2000 Scanned by Researcher 500 Met Sigix 2000 Friendly Fire -1398 Cogmind --------- Core Integrity 0/1450 Matter 56/300 Energy 195/2400 System Corruption 89% Temperature Cool (0) Movement Treading (160) Location -2/Testing Parts ------- > --- POWER (3) -------- (None) > --- PROPULSION (4) --- Enhanced Armored Medium Treads Enhanced Armored Medium Treads Enhanced Armored Medium Treads Enhanced Armored Medium Treads > --- UTILITY (15) ----- Advanced Heat Sink Huge Storage Unit Advanced Energy Well Experimental Energy Well Zionite Biocell Zionite Biocell Advanced Signal Interpreter Surveybot 24 Chip Advanced Target Analyzer Improved Armor Integrity Analyzer Graphene Brace Improved System Shield > --- WEAPON (2) ------- Improved Potential Cannon > --- INVENTORY (25) --- Zionite Weapon Casing Phase Redirector System Shield Advanced Corruption Screen Subatomic Replicator Heavy Quantum Rifle EMDS Potential Cannon Core Cannon Gamma Bomb Array Multitool Sigix Broadsword Sigix Containment Pod Peak State ------------ > --- POWER ------------ Assembled Flux Generator Quantum Reactor > --- PROPULSION ------- Advanced Heavy Treads Assembled Alloy Leg Assembled Alloy Leg > --- UTILITY ---------- Coolant Network Huge Storage Unit Assembled Biocell Array Surveybot 24 Chip Assembled Combat Suite Improved Armor Integrity Analyzer Advanced Transmission Jammer Assembled Alloy Armor Phase Armor Graphene Brace Improved System Shield GOLEM Unit > --- WEAPON ----------- Assembled Focal Cannon Assembled Focal Cannon > --- INVENTORY -------- Improved Heavy Treads Zionite Biocell Zionite Biocell Zionite Biocell Quantum Capacitor Zionite Weapon Casing Zionite Weapon Casing Experimental Force Field Phase Redirector Subatomic Replicator EMDS Core Cannon Gamma Bomb Array Micro-nuke Launcher Multitool Sigix Broadsword Sigix Containment Pod [Rating: 223] Favorites ----------- Power Assembled Flux Generator Engine Ion Engine Power Core Light Nuclear Core Reactor Assembled Flux Generator Propulsion Assembled Alloy Leg Treads Light Treads Leg Assembled Alloy Leg Wheel Wheel Hover Unit Zionite Glidesys I Flight Unit Flightbrick Utility Huge Storage Unit Device GOLEM Unit Storage Huge Storage Unit Processor Machine Analyzer Hackware Advanced Hacking Suite Protection Assembled Alloy Armor Artifact Phase Armor Weapon Assembled Focal Cannon Energy Gun Improved Spread Laser Energy Cannon Assembled Focal Cannon Ballistic Gun Assault Rifle Ballistic Cannon Mass Driver Launcher Heavy Rocket Launcher Special Weapon Mining Laser Impact Weapon Powered Hammer Slashing Weapon Makeshift Axe Piercing Weapon Makeshift Spear Special Melee Weapon Improved Datajack Build | -11 -10 -10 -10 -8 -7 -7 -7 -7 -7 -6 -6 -6 -6 -6 -5 -5 -5 -5 -5 -4 -4 -4 -4 -4 -4 -3 -3 -2 -2 ------- Run | Yrd Mat Min Sub Mat Fac Low Low Zio Dee Pro Fac Low Low Dat Pro Fac Upp Upp Zhi Pro Fac Ext Cet Arc Hub Res Qua Res Tes Slots Evolved 16 | . . . . 4 2 . . . . . 2 . . . . 2 . . . . 2 . . . . 2 . 2 . Power 2 | . . . . . . . . . . . 1 . . . . . . . . . . . . . . 1 . . . Propulsion 2 | . . . . 2 . . . . . . . . . . . . . . . . . . . . . . . . . Utility 12 | . . . . 2 2 . . . . . 1 . . . . 2 . . . . 2 . . . . 1 . 2 . Weapon . | . . . . . . . . . . . . . . . . . . . . . . . . . . . . . . Parts Attached 620 | 9 17 13 31 74 49 4 2 9 44 4 29 . 3 . 2 53 9 5 10 4 33 32 7 3 43 18 33 40 40 Power 42 | 2 3 1 2 10 4 1 . 1 3 . . . . . . . . . 1 . 2 . . . . 2 3 5 2 Engine 16 | 2 3 . 2 4 2 1 . 1 1 . . . . . . . . . . . . . . . . . . . . Core 9 | . . 1 . 6 2 . . . . . . . . . . . . . . . . . . . . . . . . Reactor 17 | . . . . . . . . . 2 . . . . . . . . . 1 . 2 . . . . 2 3 5 2 Propulsion 94 | 2 2 1 4 19 1 . . . 8 . 4 . 1 . . 7 1 1 5 . 8 6 1 . 6 . 2 4 11 Treads 60 | 2 2 1 4 18 . . . . . . 3 . . . . 5 1 1 2 . 4 5 1 . 2 . 2 2 5 Leg 27 | . . . . 1 . . . . 4 . 1 . 1 . . 2 . . 2 . 4 1 . . 4 . . 2 5 Wheel 1 | . . . . . . . . . . . . . . . . . . . . . . . . . . . . . 1 Hover 4 | . . . . . . . . . 4 . . . . . . . . . . . . . . . . . . . . Flight 2 | . . . . . 1 . . . . . . . . . . . . . 1 . . . . . . . . . . Utility 317 | 3 5 6 4 18 30 1 . 2 16 4 22 . 2 . 2 34 7 4 2 2 18 23 5 3 28 12 25 27 12 Device 162 | 2 2 5 3 12 9 1 . 1 11 . 13 . . . 1 16 5 3 1 . 7 8 3 1 11 3 20 21 3 Storage 29 | 1 2 1 . . 1 . . . 2 1 1 . . . . 4 . . 1 . . 1 . . 2 . 1 4 7 Processor 14 | . 1 . . . 5 . . . . . . . . . . . . . . . 1 1 . . 2 1 1 1 1 Hackware 20 | . . . . . 4 . . . . 1 2 . . . . 3 . . . . 4 . . . 2 4 . . . Protection 89 | . . . 1 6 11 . . 1 3 2 6 . 2 . 1 11 2 1 . 2 6 13 2 2 11 4 . 1 1 Artifact 3 | . . . . . . . . . . . . . . . . . . . . . . . . . . . 3 . . Weapon 167 | 2 7 5 21 27 14 2 2 6 17 . 3 . . . . 12 1 . 2 2 5 3 1 . 9 4 3 4 15 Energy Gun 27 | 1 3 . 3 14 . . . . 2 . . . . . . . . . 1 . 1 . . . . . . . 2 Energy Cannon 58 | . . 3 11 4 2 1 . 1 5 . 1 . . . . 7 . . . . 2 . 1 . 7 2 1 3 7 Ballistic Gun 7 | 1 2 . . 4 . . . . . . . . . . . . . . . . . . . . . . . . . Ballistic Cannon 3 | . . . . . . . . . . . . . . . . 1 . . . 1 1 . . . . . . . . Launcher 25 | . . 1 . 4 . . 1 1 5 . . . . . . 4 1 . . 1 1 . . . 1 2 . 1 2 Special Weapon 8 | . 2 . . . 4 . . . . . 2 . . . . . . . . . . . . . . . . . . Impact Weapon 15 | . . . . 1 7 1 1 1 4 . . . . . . . . . . . . . . . . . . . . Slashing Weapon 15 | . . 1 7 . . . . . . . . . . . . . . . 1 . . . . . . . 2 . 4 Piercing Weapon 1 | . . . . . . . . 1 . . . . . . . . . . . . . . . . . . . . . Special Melee Weapon 8 | . . . . . 1 . . 2 1 . . . . . . . . . . . . 3 . . 1 . . . . Unidentified Prototypes 49 | . . . . 6 . . . 1 10 . 1 . . . . 1 1 1 4 1 . . 4 . 4 . 6 2 7 Corrupted Parts 7 | . . . . . . . . . . . . . . . . . . . . . . . . . 1 . . . 6 System Corruption 64 | . . . . . . . . . . . . . . . . . . . . . . . . . 10 . . . 54 Parts Lost 112 | . . . 5 6 . . . . 2 . 2 . . . 2 19 . 2 . 4 12 2 . . 17 2 1 18 18 Power 16 | . . . 2 2 . . . . 1 . . . . . . 2 . . . . 1 . . . 1 . . 2 5 Propulsion 22 | . . . 2 2 . . . . . . . . . . 1 4 . 1 . 1 3 1 . . 1 . . 2 4 Utility 56 | . . . . 2 . . . . 1 . 2 . . . 1 6 . 1 . 3 6 1 . . 12 2 1 11 7 Weapon 18 | . . . 1 . . . . . . . . . . . . 7 . . . . 2 . . . 3 . . 3 2 Highest Loss Streak 9 | . . . 2 3 . . . . 1 . 1 . . . 2 6 . 2 . 2 4 1 . . 9 2 1 6 7 To Critical Strikes . | . . . . . . . . . . . . . . . . . . . . . . . . . . . . . . Average Slot Usage (%) 86 | . 99 100 99 99 70 80 80 79 81 83 78 80 80 71 68 81 80 86 79 84 88 88 83 83 79 84 80 81 82 Engine 2 | . 14 4 9 5 5 3 6 6 . . . . . . . . . . . . . . . . . . . . . Core 1 | . . 9 4 3 . 2 . . . . . . . . . . . . . . . . . . . . . . . Reactor 3 | . . . . . . . . . 6 7 6 6 6 6 5 4 4 5 4 5 5 5 5 5 4 8 9 7 10 Treads 11 | . 27 28 28 34 . . . . . . 2 13 11 6 . 2 8 8 7 5 5 8 5 5 4 4 4 3 4 Leg 8 | . . . . 1 . . . . 16 23 18 13 14 20 17 18 10 11 13 12 13 10 10 9 10 9 9 7 6 Device 15 | . 12 13 13 17 10 13 13 19 14 7 8 6 6 6 7 11 24 25 25 25 17 17 25 25 22 11 15 28 24 Storage 11 | . 14 14 14 9 6 6 6 6 10 15 13 13 13 13 13 11 10 11 11 11 10 10 10 10 10 9 9 8 8 Processor 2 | . 1 . . . 8 13 13 13 1 . . . . . . . . . . . 2 5 5 5 5 4 4 8 13 Hackware 4 | . . . . . 10 13 13 10 . . 6 6 6 6 6 8 1 . . . 14 7 . . 1 19 10 4 4 Protection 6 | . . . . 8 7 6 6 2 10 14 6 6 6 6 4 9 5 10 11 12 10 14 15 13 11 6 5 3 3 Energy Gun 2 | . 14 . 3 11 . . . . . . . . . . . . . . . . . . . . . . . . 1 Energy Cannon 10 | . . 24 21 5 . . . . 11 15 12 13 13 4 10 10 9 11 3 10 9 9 7 10 8 8 8 6 1 Peak Build Rating 223 | 9 10 15 20 43 71 75 76 83 124 115 132 110 119 119 121 144 142 152 144 143 162 161 172 171 177 185 211 223 205 Average Rating 98 | 6 9 11 15 34 66 73 75 80 97 114 120 109 112 107 107 132 124 137 126 136 150 146 158 166 158 174 192 206 182 On Entrance 104 | . 7 10 12 19 43 71 75 75 81 115 112 110 110 119 119 121 64 134 142 143 143 143 144 170 161 159 173 203 152 Naked Turns . | . . . . . . . . . . . . . . . . . . . . . . . . . . . . . . Heaviest Build 236 | 14 51 92 104 113 24 24 23 30 129 129 167 167 167 167 167 180 173 174 175 181 177 188 188 193 193 194 231 236 152 Greatest Support 140 | 40 40 40 40 80 24 24 24 24 115 115 115 60 90 90 90 90 60 80 116 88 85 85 60 60 120 75 75 75 140 Greatest Overweight (x) 64 | . 1 2 2 1 . . . 1 14 1 3 5 2 1 1 3 3 2 4 3 5 5 3 64 5 6 7 6 5 Average Overweight (x) 1 | . . 1 2 1 . . . . . . 1 2 1 1 1 1 2 2 1 1 2 2 2 4 2 2 3 2 1 Largest Inventory Capacity 25 | 8 20 25 25 25 25 10 10 10 25 25 25 25 25 25 25 25 25 25 25 25 25 25 25 25 25 25 25 25 25 Average Capacity 22 | 7 17 24 25 25 10 10 10 10 14 24 24 25 25 25 25 25 25 25 25 25 25 25 25 25 25 25 25 25 25 Most Carried 25 | 5 20 23 25 25 23 10 10 10 25 25 25 25 25 25 25 25 25 25 25 23 25 25 25 25 25 25 25 25 25 Average Carried 21 | 2 16 22 24 24 10 9 10 9 11 24 23 25 24 25 24 24 17 24 23 21 23 24 24 24 23 24 24 23 22 Final Capacity 25 | 8 20 25 25 25 10 10 10 10 25 20 25 25 25 25 25 25 25 25 25 25 25 25 25 25 25 25 25 25 25 Final Carried 25 | 5 20 23 25 24 10 10 10 10 25 20 25 25 25 25 25 13 24 24 23 22 25 25 25 25 25 25 25 21 18 Class Distribution -------------------- 34% | Golem 25% | Mutant 14% | Scavenger-Mutant 13% | Hacker-Golem 5% | Hacker-Mutant 3% | Scavenger-Golem Dominant Class ---------------- Mutant | -10/Materials Mutant | -10/Mines Mutant | -10/Subcaves Scavenger-Mutant | -8/Materials Hacker-Mutant | -7/Factory Hacker-Mutant | -7/Lower Caves Hacker-Mutant | -7/Lower Caves Hacker-Mutant | -7/Zion Golem | -7/Deep Caves Golem | -6/Proximity Caves Golem | -6/Factory Golem | -6/Lower Caves Golem | -6/Lower Caves Golem | -6/Data Miner Golem | -5/Proximity Caves Golem | -5/Factory Golem | -5/Upper Caves Golem | -5/Upper Caves Golem | -5/Zhirov Golem | -4/Proximity Caves Hacker-Golem | -4/Factory Hacker-Golem | -4/Extension Commander-Golem | -4/Cetus Scavenger-Golem | -4/Archives Golem | -4/Hub_04(d) Wizard-Golem | -3/Research Hacker-Golem | -3/Quarantine Mutant | -2/Research Scavenger-Mutant | -2/Testing Resources | -11 -10 -10 -10 -8 -7 -7 -7 -7 -7 -6 -6 -6 -6 -6 -5 -5 -5 -5 -5 -4 -4 -4 -4 -4 -4 -3 -3 -2 -2 ----------- Run | Yrd Mat Min Sub Mat Fac Low Low Zio Dee Pro Fac Low Low Dat Pro Fac Upp Upp Zhi Pro Fac Ext Cet Arc Hub Res Qua Res Tes Matter Collected 9025 | 320 334 169 323 877 471 91 18 95 896 40 349 8 267 . 151 601 154 104 88 41 425 277 178 66 861 237 429 601 554 Remotely 16 | . . . . . . . . . . . . . . . . . . . . . . . . . . . . 16 . Salvage Created 35853 | 173 678 323 551 2510 611 46 33 . 2975 152 3085 195 2 . 752 4158 1329 247 267 258 3275 1232 268 339 3425 844 1860 4072 2193 Parts 1597 | 11 63 10 33 129 14 1 7 . 65 11 150 9 1 . 35 201 38 14 6 19 171 50 14 21 124 35 113 183 69 Haulers Intercepted 28 | . 2 . . 6 7 . . . . . 4 . . . . 4 1 . . . 1 . . . 1 . . 1 1 Recyclers Shooed 16 | . 1 . . . . . . . . . 9 . . . . 1 . . . . 1 . . . 1 . . . 3 Parts Field Recycled . | . . . . . . . . . . . . . . . . . . . . . . . . . . . . . . Retrieved Matter . | . . . . . . . . . . . . . . . . . . . . . . . . . . . . . . Parts Self-Destructed 152 | . . . 7 . . 1 6 . . 11 . 9 10 . 35 . 38 14 2 19 . . . . . . . . . Prevented 5 | . . . . . . . . . . . . . 1 . . . 3 . . 1 . . . . . . . . . Kills | -11 -10 -10 -10 -8 -7 -7 -7 -7 -7 -6 -6 -6 -6 -6 -5 -5 -5 -5 -5 -4 -4 -4 -4 -4 -4 -3 -3 -2 -2 ------- Run | Yrd Mat Min Sub Mat Fac Low Low Zio Dee Pro Fac Low Low Dat Pro Fac Upp Upp Zhi Pro Fac Ext Cet Arc Hub Res Qua Res Tes Combat Hostiles Destroyed 509 | . 14 8 13 48 . . 4 . 66 6 37 4 . . 16 63 24 7 . 8 44 9 2 1 39 13 24 42 17 Melee 7 | . . . . . . . . . 5 . . . . . . 1 . . . . . . . . . . . 1 . Guns 50 | . 12 . 2 33 . . . . . . . . . . . . . . . . . . . . . . . . 3 Cannons 324 | . . 6 11 12 . . . . 9 6 36 4 . . 16 50 21 7 . 3 44 8 2 1 23 7 24 34 . AOE 86 | . 2 2 . 3 . . 4 . 40 . 1 . . . . 11 3 . . 5 . . . . 3 6 . 3 3 Classes Destroyed 31 | 2 5 2 2 6 . 1 1 . 3 . 2 1 . . 1 1 . . . . . . . . 1 1 1 1 . Worker 25 | . 4 . . 3 . . . . . . . . . . . 6 . . . . 1 . . . 4 . . 5 2 Builder 25 | . . 1 . 1 . . . . . . 3 . . . . 4 . . . . 4 1 . . . 1 1 3 6 Tunneler 9 | 4 2 1 . 1 . . . . . . . . . . . 1 . . . . . . . . . . . . . Hauler 28 | . 2 . . 6 7 . . . . . 4 . . . . 4 1 . . . 1 . . . 1 . . 1 1 Recycler 28 | 1 1 1 . 1 2 . . . . . 4 . . . . 2 . . . . 2 3 . . 4 . . 3 4 Minesweeper 3 | . . . . . . 2 . . . . . . 1 . . . . . . . . . . . . . . . . Mechanic 1 | . . . . 1 . . . . . . . . . . . . . . . . . . . . . . . . . Operator 13 | . . . . 2 . . . . . . 1 . . . . 1 . . . . . 1 . 5 . 1 1 1 . Drone 2 | . . . . . . . . . . . . . . . 2 . . . . . . . . . . . . . . Watcher 32 | . 3 . . 5 6 . . . . . 2 . . . . 4 . . . . 3 1 1 . 2 . 1 3 1 Swarmer 62 | . 6 . . 6 . . 3 . . 6 2 2 . . 5 5 10 5 . 6 4 . . . . . . 2 . Saboteur 3 | . . . . . . . . . . . . . . . . 2 . . . . . . . . . . . 1 . Grunt 167 | . 8 4 . 24 . . . . . . 17 . . . 7 31 10 2 . . 12 4 . . 14 7 5 13 9 Brawler 5 | . . . . 1 . . . . . . . . . . 1 2 . . . . . . . . . . 1 . . Duelist 13 | . . . . 1 . . . . . . . . . . . 4 2 . . . 1 . . . 4 . . 1 . Protector 7 | . . . . . . . . . . . . . . . . . . . . . . . . . 5 . 1 . 1 Researcher 3 | . . . . . . . . . . . . . . . . . . . . . . . . . . . 1 . 2 Sentry 33 | . . . 1 11 . . . . . . 5 1 . . 1 3 1 . . . 3 2 . 1 1 1 . 2 . Demolisher 1 | . . . . . . . . . . . . . . . . . . . . . . . . . . 1 . . . Specialist 10 | . . . . 4 . . . . . . . . . . . . . . . . 4 . . . . . . 2 . Hunter 40 | . . . . . . . . . . . 5 . . . . 6 1 . . . 6 2 . . 2 3 2 9 4 Programmer 61 | . . . . . . . 1 . . . 7 . . . . 9 . . . 1 14 . . . 4 1 12 9 3 Heavy 2 | . . . . 1 . . . . . . . . . . . . . . . . . . . . . . . 1 . Q-Series 1 | . . . . . . . . . . . . . . . . . . . . . . . . . . . . 1 . Behemoth 5 | . . . . . . . . . . . 1 . . . . 1 . . . 1 . 1 . . . . . 1 . Cetus Guard 2 | . . . . . . . . . . . . . . . . . . . . . . . 2 . . . . . . Enhanced Grunt 1 | . . . . . . . . . . . . . . . . . . . . . . . . 1 . . . . . Lightning 12 | . . . . . . . . . . . . . . . . . . . . . . . . . 9 . 3 . . Subdweller 12 | . . . 12 . . . . . . . . . . . . . . . . . . . . . . . . . . Z-Technician 3 | . . . . . . . . . 3 . . . . . . . . . . . . . . . . . . . . Z-Light 11 | . . . . . . . . . 11 . . . . . . . . . . . . . . . . . . . . Packrat 2 | . . . . . . . . . . . . . . . . . 2 . . . . . . . . . . . . Assembler 2 | . . . . . . . . . 2 . . . . . . . . . . . . . . . . . . . . Assembled 41 | . . 4 . . . . . . 37 . . . . . . . . . . . . . . . . . . . . Golem 17 | . . . . . . . . . 17 . . . . . . . . . . . . . . . . . . . . Mutant 1 | . . . . . . . . . . . . 1 . . . . . . . . . . . . . . . . . Best Kill Streak 42 | 4 5 2 2 7 3 1 4 . 42 6 6 3 1 . 5 16 5 3 . 6 10 3 1 3 15 8 6 9 13 Combat Bots Only 40 | . 3 2 2 7 . . 4 . 40 6 6 3 . . 5 12 5 3 . 6 10 2 1 1 15 8 6 5 5 Max Kills in Single Turn 24 | 1 3 2 1 4 1 1 3 . 24 1 2 1 1 . 1 4 3 1 . 5 2 1 1 2 2 3 1 2 3 Gunslinging 1 | . 1 . . . . . . . . . . . . . . . . . . . . . . . . . . . . Exploded 23 | . 2 2 . 3 . . 3 . 23 . 1 . . . . 4 3 . . 5 . . . . 2 3 . 1 2 Melee 1 | . . . . . . . . . 1 . . . . . . 1 . . . . . . . . . . . 1 . Uniques/NPCs Destroyed 2 | . . . . . . . . . 1 . . . . . . . . . . . . . 1 . . . . . . Z-Imprinter (-7/Deep Caves) A7 (-4/Cetus) Combat | -11 -10 -10 -10 -8 -7 -7 -7 -7 -7 -6 -6 -6 -6 -6 -5 -5 -5 -5 -5 -4 -4 -4 -4 -4 -4 -3 -3 -2 -2 -------- Run | Yrd Mat Min Sub Mat Fac Low Low Zio Dee Pro Fac Low Low Dat Pro Fac Upp Upp Zhi Pro Fac Ext Cet Arc Hub Res Qua Res Tes Hostile Shots Fired 3495 | . 40 16 43 247 75 . 17 . 125 14 317 26 . . 64 487 77 25 . 58 434 80 5 . 409 102 179 462 193 Missed 1087 | . 10 3 8 69 49 . 13 . 56 5 94 10 . . 19 136 27 9 . 14 178 29 4 . 107 41 41 110 55 Damage Taken 44835 | . 324 187 913 2799 323 . 72 . 1939 112 3102 154 . . 776 6414 759 211 . 1145 3937 771 30 16 7197 1333 1745 7200 3376 Core 4528 | . 50 13 97 235 51 . 29 . 217 14 209 . . . 12 804 55 13 . 109 308 58 . . 295 87 405 1076 391 Absorbed by Shields 2327 | . . . . 16 . . . . . . . . . . . . . . . . . 244 11 6 10 . 1206 834 . Reduced by Siege Mode 816 | . . . . . . . . . . . . . . . . 24 . . . . . . . . 334 51 57 324 26 Redirected to Core 825 | . . . . . . . . . . . . . . . . . . . . . . . . . . . 330 495 . Redirected to Shielding 651 | . . . . . 141 . . . 72 . . . . . . 106 . . . . 108 10 . . 43 . . 36 135 Ignored by Resistances 5424 | . . . . . . . . . 229 26 307 . . . . 639 159 45 . 201 837 146 8 4 1452 106 477 788 . Regen/Repaired (Parts) 1388 | . 83 . . 61 . . . 171 . . 411 . . . . 235 . . . . . 427 . . . . . . . Core Remaining (%) 53 | 100 . . 36 57 . . . . . 55 . . . . 74 . . . . 1 . . . . 42 . 62 . . Volleys Fired 1661 | 10 49 17 32 152 2 5 3 4 92 6 165 9 23 . 30 170 82 12 . 36 133 46 9 13 167 43 84 197 70 Largest 2 | 2 2 2 2 2 1 1 1 1 2 2 2 2 2 . 2 2 2 2 . 2 2 2 2 2 2 2 2 2 2 Hottest 200 | 60 100 120 160 160 69 30 43 90 138 50 115 50 50 . 50 120 50 50 . 57 130 50 50 50 130 130 50 120 200 Shots Fired 2706 | 20 93 34 62 300 2 5 3 4 145 12 273 17 46 . 60 267 148 23 . 69 229 90 17 26 203 71 148 277 62 Gun 335 | 20 88 . 12 197 . . . . . . . . . . . . . . . . . . . . . . . . 18 Cannon 2297 | . . 33 50 98 2 5 . 4 117 12 273 17 46 . 60 258 147 23 . 68 229 90 17 26 198 67 148 274 35 Launcher 69 | . . 1 . 5 . . 3 . 28 . . . . . . 9 1 . . 1 . . . . 5 4 . 3 9 Special 5 | . 5 . . . . . . . . . . . . . . . . . . . . . . . . . . . . Kinetic 71 | 10 45 . . 7 . . . . . . . . . . . 1 . . . 1 7 . . . . . . . . Thermal 2448 | 10 46 33 62 286 . 5 . 4 92 12 273 17 46 . 60 248 147 23 . 67 222 90 17 26 158 67 148 265 24 Explosive 57 | . . 1 . 1 . . 3 . 28 . . . . . . 9 1 . . 1 . . . . 5 4 . . 4 Electromagnetic 130 | . 2 . . 6 2 . . . 25 . . . . . . 9 . . . . . . . . 40 . . 12 34 Robot Hit Streak 41 | 5 6 9 7 20 1 . . . 19 11 22 6 6 . 12 27 23 5 . 23 38 26 7 19 41 36 31 20 6 Robot Miss Streak 6 | 2 3 3 2 5 1 . . . 2 . 6 1 1 . 6 2 2 3 . 2 3 2 1 2 2 2 2 3 6 Penetration Max 1 | . . . . . . . . . . . . . . . . . . . . . . . . . 1 . . 1 1 Secondary Targets 7 | . 3 . . 4 . . . . . . . . . . . . . . . . . . . . . . . . . Max Gunslinging Chain 1 | . 1 . . 1 . . . . . . . . . . . . . . . . . . . . . . . . . Capacitor 126 | . . . . . . . . . . . . . . . . . . . . . . . . . . . . 80 46 Shots Hit Robots 1889 | 11 51 19 37 229 30 4 1 1 129 8 183 11 3 . 36 190 71 10 10 26 163 91 13 21 162 43 98 202 36 Core Hits 1107 | 6 28 12 16 179 6 1 4 . 140 6 69 5 1 . 18 123 30 8 3 9 70 29 10 9 91 34 48 95 57 Critical Kills 8 | . . . . . 2 . . . 4 . . . . . . . . . . . . . . . 2 . . . . Critical Parts Destroyed 9 | . 1 . . 1 1 1 . . 5 . . . . . . . . . . . . . . . . . . . . Critical Strikes 43 | . 3 . . 7 3 1 . . 10 . . . . . . . . . . . 1 . . . 6 . . 2 10 Burn 8 | . 2 . . 6 . . . . . . . . . . . . . . . . . . . . . . . . . Meltdown 2 | . . . . . . . . . . . . . . . . . . . . . . . . . 2 . . . . Destroy 2 | . 1 . . 1 . . . . . . . . . . . . . . . . . . . . . . . . . Blast 1 | . . . . . . . . . . . . . . . . . . . . . 1 . . . . . . . . Corrupt 17 | . . . . . . . . . 1 . . . . . . . . . . . . . . . 4 . . 2 10 Smash 13 | . . . . . 3 1 . . 9 . . . . . . . . . . . . . . . . . . . . Melee Attacks 245 | . . 25 37 1 58 6 1 1 77 . . . . . . . . . 10 . . 21 . . . . . . 8 Impact 138 | . . . . 1 53 6 1 . 77 . . . . . . . . . . . . . . . . . . . . Slashing 80 | . . 25 37 . . . . . . . . . . . . . . . 10 . . . . . . . . . 8 Piercing . | . . . . . . . . . . . . . . . . . . . . . . . . . . . . . . Sneak Attacks 41 | . . 1 . . 14 2 . 1 1 . . . . . . . . . . . . 21 . . . . . . 1 Combat Hostiles 1 | . . . . . 1 . . . . . . . . . . . . . . . . . . . . . . . . Follow-up Attacks . | . . . . . . . . . . . . . . . . . . . . . . . . . . . . . . Damage Inflicted 98264 | 124 923 459 1012 5873 1666 239 308 . 10558 349 9188 553 158 . 1741 11447 3644 485 755 1758 8543 3499 852 1203 9369 3370 4923 10385 4880 Guns 5071 | 124 757 . 188 3484 . . . . . . . . . . . . . . . . . . . . . . . . 518 Cannons 71088 | . . 317 824 1778 37 . . . 2815 349 8941 553 158 . 1741 8436 3331 485 . 1387 8498 3468 852 1203 7998 2072 4894 9711 1240 Explosions 15392 | . 140 68 . 569 . . 269 . 4303 . 155 . . . . 2990 313 . . 371 . . . . 1344 1296 . 644 2930 Melee 6357 | . . 67 . . 1629 239 39 . 3440 . . . . . . . . . 755 . . . . . . . . . 188 Ramming 356 | . 26 7 . 42 . . . . . . 92 . . . . 21 . . . . 45 31 . . 27 2 29 30 4 Kinetic 854 | 38 224 . . 333 . . . . . . . . . . . 25 . . . . 234 . . . . . . . . Thermal 72826 | 86 646 317 1012 5107 . . . . 2394 349 8941 553 158 . 1741 9038 3331 485 . 1387 8264 3468 852 1203 6096 2072 4894 9249 1183 Explosive 11423 | . . 68 . 189 . . 269 . 4191 . 155 . . . . 2121 313 . . 371 . . . . 937 1296 . 167 1346 Electromagnetic 6448 | . 27 . . 202 37 . . . 533 . . . . . . 242 . . . . . . . . 2309 . . 939 2159 Impact 5347 | . . . . . 1629 239 39 . 3440 . . . . . . . . . . . . . . . . . . . . Slashing 1010 | . . 67 . . . . . . . . . . . . . . . . 755 . . . . . . . . . 188 Piercing . | . . . . . . . . . . . . . . . . . . . . . . . . . . . . . . Highest Corruption 89 | . 1 1 1 1 1 1 1 1 . . 3 4 4 4 4 2 2 2 2 8 2 5 5 5 48 1 20 27 89 Average Corruption 3 | . 1 1 1 1 1 1 1 1 . . 1 3 4 4 4 1 2 2 2 3 1 3 5 3 26 1 6 10 48 Corruption Purged 9 | . . . . . . . . . . . . . . . . 4 . . . . . . . 5 . . . . . Corruption Blocked 1 | . . . . . 1 . . . . . . . . . . . . . . . . . . . . . . . . Effects 601 | . 21 21 37 31 6 1 3 . . . 20 20 35 5 22 16 39 9 7 20 7 46 12 4 75 3 48 55 38 Message Errors 162 | . 5 5 11 6 . . 1 . . . 6 2 11 1 6 10 17 2 3 8 1 18 1 1 16 1 12 11 7 Matter Fused 149 | . 4 5 8 8 1 . . . . . 6 4 9 1 7 1 7 5 1 4 4 9 5 1 20 . 16 16 7 Heat Flow Errors 62 | . 3 5 2 3 2 . . . . . 3 1 6 1 3 . 5 1 . 3 2 2 1 . 8 1 3 4 3 Energy Discharges 57 | . 3 . 6 3 2 . . . . . 1 5 4 . 2 2 2 . 1 1 . 4 . 1 7 1 4 6 2 Parts Rejected 7 | . . . . 1 . . . . . . . . . . . 2 . . . . . 2 1 . . . . . 1 Parts Fused 5 | . . . . . . . . . . . . . . . . . 1 1 . 1 . . . . . . 2 . . Data Loss (minor) 62 | . 4 3 4 3 1 1 1 . . . 3 5 . 1 3 . 5 . . 1 . 5 2 . 5 . 6 5 4 Data Loss (major) 33 | . . 1 3 5 . . 1 . . . . 1 4 . 1 . 1 . 2 1 . . 1 1 5 . 1 4 1 Misfires 15 | . 1 1 2 1 . . . . . . . 1 . . . . 1 . . 1 . 3 . . 2 . 1 . 1 Alerts 9 | . . 1 1 . . . . . . . 1 . 1 1 . . . . . . . 2 1 . . . . 1 . Misdirections 3 | . . . . . . . . . . . . . . . . . . . . . . . . . 2 . . . 1 Weapon Failures 37 | . 1 . . 1 . . . . . . . 1 . . . 1 . . . . . 1 . . 10 . 3 8 11 Overload Shots 5 | . . . . . . . . 4 . . . . . . . 1 . . . . . . . . . . . . . Effects 1 | . . . . . . . . 1 . . . . . . . . . . . . . . . . . . . . . Energy Bleed 1 | . . . . . . . . 1 . . . . . . . . . . . . . . . . . . . . . Overflow Damage 5529 | . . 43 . 62 430 79 62 . 1233 . 601 37 57 . 54 446 209 . 21 13 573 106 . 154 250 121 157 348 473 Projectiles 3356 | . . 6 . 62 . . . . 256 . 582 37 57 . 54 323 209 . . 13 568 106 . 154 215 117 152 347 98 Explosions 646 | . . . . . . . 62 . 182 . 13 . . . . 123 . . . . . . . . 35 4 . . 227 Melee 1527 | . . 37 . . 430 79 . . 795 . 6 . . . . . . . 21 . 5 . . . . . 5 1 148 Knockbacks 16 | . . . . . 2 1 . . 7 . 1 . . . . . . . . . 3 . . . 1 . 1 . . Impact 14 | . . . . . 2 1 . . 7 . 1 . . . . . . . . . 1 . . . 1 . 1 . . Kinetic 2 | . . . . . . . . . . . . . . . . . . . . . 2 . . . . . . . . Secondary . | . . . . . . . . . . . . . . . . . . . . . . . . . . . . . . Self-Inflicted Damage 911 | . 47 22 . . . . . . 29 . 132 . . . . 29 . . . . . . . . 248 . . 100 304 Shots 30 | . 1 1 . . . . . . 2 . 2 . . . . 2 . . . . . . . . 4 . . 1 17 Rammed 11 | . 4 1 . 1 . . . . . . . . . . . 1 . . . . . . . . . 1 2 . 1 Targets Rammed 29 | . 5 2 . 3 . . . . . . 5 . . . . 2 . . . . 4 1 . . 1 1 2 2 1 Kicked 14 | . . . . . . . . . . . 5 . . . . 1 . . . . 4 1 . . 1 . . 2 . Crushed 4 | . 1 1 . 2 . . . . . . . . . . . . . . . . . . . . . . . . . Highest Temperature 408 | . 270 269 408 396 250 . 6 200 108 18 235 167 245 88 266 368 203 82 . 235 182 247 164 . 245 108 220 325 162 Average Temperature 70 | . 52 82 76 97 104 . 3 111 24 9 51 51 88 56 73 116 63 53 . 93 60 122 101 . 66 23 120 55 43 Received Heat Transfer 8513 | . 81 134 455 1107 78 . . . 483 . 630 78 . . 249 2182 199 . . 102 639 156 . . 733 252 68 761 126 Effects 5 | . 2 . 2 1 . . . . . . . . . . . . . . . . . . . . . . . . . Shutdowns 1 | . . . 1 . . . . . . . . . . . . . . . . . . . . . . . . . . Interference 2 | . 2 . . . . . . . . . . . . . . . . . . . . . . . . . . . . Short Circuit 1 | . . . . 1 . . . . . . . . . . . . . . . . . . . . . . . . . Damage (minor) 1 | . . . 1 . . . . . . . . . . . . . . . . . . . . . . . . . . Siege Activations 34 | . . . . . . . . . . . . . . . . 2 . . . . . . . . 6 1 8 16 1 Total Turns 856 | . . . . . . . . . . . . . . . . 44 . . . . . . . . 321 25 156 299 11 Longest Duration 137 | . . . . . . . . . . . . . . . . 36 . . . . . . . . 137 25 45 56 11 Robots Corrupted 51 | . . . . . 6 1 . . 13 . . . . . . . . . . . 1 . . . 12 . 1 4 13 Combat Hostiles 38 | . . . . . . . . . 13 . . . . . . . . . . . . . . . 11 . . 3 11 Parts Fried 79 | . . . . . 10 . . . . . . . . . . 1 . . . . 1 . . . 25 . 3 13 26 Impact Corruptions 43 | . . . . . 15 4 . . 20 . 1 . . . . . . . . . 1 . . . . . 1 1 . Robots Melted 5 | . . . . . . . . . . . . . . . . 1 . . . . . 1 . . 2 . . 1 . Combat Hostiles 5 | . . . . . . . . . . . . . . . . 1 . . . . . 1 . . 2 . . 1 . Parts Melted 57 | . 3 . 5 2 . . . . 2 . 4 . . . . 5 1 . . . 3 4 . . 5 3 1 16 3 Heat Transferred 46246 | 200 1432 666 1335 6640 . . . . 1312 200 4875 300 75 . 950 5200 1850 250 . 625 4236 1874 375 600 2827 1149 2484 5858 933 Parts Sabotaged 1 | . . . . . . . . . . . . . . . . 1 . . . . . . . . . . . . . Parts Stolen . | . . . . . . . . . . . . . . . . . . . . . . . . . . . . . . Parts Stripped . | . . . . . . . . . . . . . . . . . . . . . . . . . . . . . . Power Chain Reactions 7 | . 1 . . 1 . . . . 1 . . . . . . . . . . . . . . . 1 . . 1 2 Alert | -11 -10 -10 -10 -8 -7 -7 -7 -7 -7 -6 -6 -6 -6 -6 -5 -5 -5 -5 -5 -4 -4 -4 -4 -4 -4 -3 -3 -2 -2 ------- Run | Yrd Mat Min Sub Mat Fac Low Low Zio Dee Pro Fac Low Low Dat Pro Fac Upp Upp Zhi Pro Fac Ext Cet Arc Hub Res Qua Res Tes Peak Influence 1783 | 25 396 75 . 988 597 . . . . . 659 . . . . 1783 . . . . 628 467 396 275 1499 1131 422 1125 1135 Initial 753 | . 16 . . . 449 . . . . . 88 . . . . 300 . . . . . 214 81 78 . 753 222 237 618 Average 369 | 13 99 14 . 390 406 . . . . . 297 . . . . 694 . . . . 322 205 243 136 719 602 246 653 745 Maximum Alert Level 5 | . 1 . . 3 2 . . . . . 2 . . . . 5 . . . . 2 2 1 1 4 4 2 4 4 Low Security (%) 35 | 100 76 100 . 22 . . . . . . 47 . . . . 12 . . . . 28 48 26 65 26 . 29 . . Level 1 28 | . 23 . . 43 51 . . . . . 13 . . . . 21 . . . . 33 45 73 34 5 16 60 21 . Level 2 19 | . . . . 13 48 . . . . . 38 . . . . 24 . . . . 38 6 . . 3 53 10 33 53 Level 3 12 | . . . . 19 . . . . . . . . . . . 24 . . . . . . . . 42 21 . 42 42 Level 4 3 | . . . . . . . . . . . . . . . . 10 . . . . . . . . 21 7 . 2 3 Level 5 . | . . . . . . . . . . . . . . . . 1 . . . . . . . . . . . . . High Security . | . . . . . . . . . . . . . . . . 5 . . . . . . . . . . . . . Max Security . | . . . . . . . . . . . . . . . . . . . . . . . . . . . . . . Squads Dispatched 124 | . 3 . . 13 10 . . . . . 18 . . . . 19 . . . 1 12 1 . . 9 11 7 12 8 Investigation 21 | . 3 . . 5 5 . . . . . 3 . . . . 1 . . . . . . . . . 4 . . . Extermination 32 | . . . . . 4 . . . . . 5 . . . . 3 . . . . 6 . . . 3 . 5 5 1 Reinforcement 44 | . . . . 4 1 . . . . . 7 . . . . 7 . . . . 3 1 . . 2 7 2 5 5 Assault 18 | . . . . 1 . . . . . . . . . . . 8 . . . 1 . . . . 4 . . 2 2 Garrison 9 | . . . . 3 . . . . . . 3 . . . . . . . . . 3 . . . . . . . . Intercept . | . . . . . . . . . . . . . . . . . . . . . . . . . . . . . . Searches Triggered 1 | . . . . . . . . . . . . . . . . 1 . . . . . . . . . . . . . Data Miner Redirects 4 | . . . . . . . . . . . . . . . . 1 . . . . . . . . 1 . . 1 1 Construction Impeded 4 | . . . . . . . . . . . 1 . . . . . . . . . . 1 . . . . . . 2 Haulers Reinforced 11 | . . . . . . . . . . . 4 . . . . 4 . . . . . . . . . 2 . . 1 Active Scanning Responses . | . . . . . . . . . . . . . . . . . . . . . . . . . . . . . . Cargo Convoy Interrupts . | . . . . . . . . . . . . . . . . . . . . . . . . . . . . . . Stealth | -11 -10 -10 -10 -8 -7 -7 -7 -7 -7 -6 -6 -6 -6 -6 -5 -5 -5 -5 -5 -4 -4 -4 -4 -4 -4 -3 -3 -2 -2 --------- Run | Yrd Mat Min Sub Mat Fac Low Low Zio Dee Pro Fac Low Low Dat Pro Fac Upp Upp Zhi Pro Fac Ext Cet Arc Hub Res Qua Res Tes Distress Signals 26 | . 2 1 . 3 . . . . . . 4 . . . . 2 . . . . 3 1 2 . 1 4 . 2 1 Communications Jammed 195 | . . . . . . . . . . . . . . . . . . . . . . 7 . . . . 4 141 43 Distress Signals 190 | . . . . . . . . . . . . . . . . . . . . . . 7 . . . . 4 136 43 Times Spotted 779 | . 23 9 16 67 53 . 7 . 58 5 54 4 . . 16 94 30 8 . 19 58 26 10 13 50 33 32 64 30 Peak Tracking Total 37 | . 6 2 3 4 8 . 4 . 37 3 5 2 . . 7 16 5 5 . 12 8 4 5 2 11 8 6 6 8 Tactical Retreats 54 | . 1 2 1 4 16 . 2 . 2 . 5 . . . . 4 4 1 . . 4 2 . . 1 . . 4 1 Traps | -11 -10 -10 -10 -8 -7 -7 -7 -7 -7 -6 -6 -6 -6 -6 -5 -5 -5 -5 -5 -4 -4 -4 -4 -4 -4 -3 -3 -2 -2 ------- Run | Yrd Mat Min Sub Mat Fac Low Low Zio Dee Pro Fac Low Low Dat Pro Fac Upp Upp Zhi Pro Fac Ext Cet Arc Hub Res Qua Res Tes Traps Triggered 21 | . 1 . 1 2 . . . . . . 2 . . . . 6 . . . . . 4 . . 1 1 2 1 . Indirectly 1 | . . . . . . . . . . . . . . . . . . . . . . . . . 1 . . . . Trap Hack Attempts 55 | . . . . . 50 . . . . . . . . . . . . . . . . . . . 5 . . . . Triggered . | . . . . . . . . . . . . . . . . . . . . . . . . . . . . . . Disarmed 3 | . . . . . 2 . . . . . . . . . . . . . . . . . . . 1 . . . . Reprogrammed 3 | . . . . . 3 . . . . . . . . . . . . . . . . . . . . . . . . Reused . | . . . . . . . . . . . . . . . . . . . . . . . . . . . . . . Traps Extracted . | . . . . . . . . . . . . . . . . . . . . . . . . . . . . . . Installed . | . . . . . . . . . . . . . . . . . . . . . . . . . . . . . . Triggered 5 | . . . . . . . 1 . . . . . . . . . 1 1 . 2 . . . . . . . . . Machines | -11 -10 -10 -10 -8 -7 -7 -7 -7 -7 -6 -6 -6 -6 -6 -5 -5 -5 -5 -5 -4 -4 -4 -4 -4 -4 -3 -3 -2 -2 ---------- Run | Yrd Mat Min Sub Mat Fac Low Low Zio Dee Pro Fac Low Low Dat Pro Fac Upp Upp Zhi Pro Fac Ext Cet Arc Hub Res Qua Res Tes Machines Disabled 89 | . 1 . 1 2 1 . . 3 3 . 8 1 . . . 18 . . . . 3 2 1 3 20 3 7 3 9 Max in Single Turn 8 | . 1 . 1 1 1 . . 1 1 . 2 1 . . . 8 . . . . 1 1 1 . 8 1 1 2 2 Garrison Access 3 | . . . . . 1 . . . . . . . . . . 1 . . . . . . . . 1 . . . . Network Hub 3 | . . . . . . . . . . . . . . . . . . . . . . . . . 3 . . . . Machines Repaired . | . . . . . . . . . . . . . . . . . . . . . . . . . . . . . . Machines Dismantled . | . . . . . . . . . . . . . . . . . . . . . . . . . . . . . . Machines Sabotaged . | . . . . . . . . . . . . . . . . . . . . . . . . . . . . . . Overloaded Fab Kills . | . . . . . . . . . . . . . . . . . . . . . . . . . . . . . . Hacking | -11 -10 -10 -10 -8 -7 -7 -7 -7 -7 -6 -6 -6 -6 -6 -5 -5 -5 -5 -5 -4 -4 -4 -4 -4 -4 -3 -3 -2 -2 --------- Run | Yrd Mat Min Sub Mat Fac Low Low Zio Dee Pro Fac Low Low Dat Pro Fac Upp Upp Zhi Pro Fac Ext Cet Arc Hub Res Qua Res Tes Machines Accessed 105 | . 11 . 2 13 21 1 . . . . 10 . . 4 . 8 . . 4 . 7 8 . . 2 3 11 . . Terminals 63 | . 8 . . 10 12 . . . . . 4 . . . . 2 . . . . 6 7 . . 2 2 10 . . Fabricators 10 | . . . . . 5 . . . . . 3 . . . . 1 . . . . . . . . . 1 . . . Repair Stations 5 | . 1 . . 1 . . . . . . 1 . . . . 1 . . . . . 1 . . . . . . . Recycling Units 8 | . 2 . . 1 1 . . . . . 1 . . . . 2 . . . . 1 . . . . . . . . Scanalyzers 5 | . . . . 1 1 . . . . . 1 . . . . 1 . . . . . . . . . . 1 . . Garrison Access 3 | . . . . . 2 . . . . . . . . . . 1 . . . . . . . . . . . . . Total Hacks 362 | . 31 . 5 39 52 1 . . . . 27 . . 31 . 28 . . 17 . 31 28 . . 8 22 42 . . Successful 229 | . 16 . 5 18 32 1 . . . . 18 . . 31 . 20 . . 17 . 20 12 . . 2 13 24 . . Failed 132 | . 14 . . 21 20 . . . . . 9 . . . . 8 . . . . 11 16 . . 6 9 18 . . Catastrophic 21 | . 1 . . 3 6 . . . . . . . . . . 4 . . . . . 2 . . 3 1 1 . . Database Lockouts 1 | . 1 . . . . . . . . . . . . . . . . . . . . . . . . . . . . Manual 144 | . 24 . . 29 32 . . . . . 8 . . . . 1 . . . . 17 11 1 . 5 5 11 . . Terminals 217 | . 23 . . 32 29 . . . . . 9 . . . . 7 . . . . 27 24 . . 8 18 40 . . Fabricators 32 | . . . . . 15 . . . . . 10 . . . . 3 . . . . . . . . . 4 . . . Repair Stations 13 | . 3 . . 2 . . . . . . 2 . . . . 2 . . . . . 4 . . . . . . . Recycling Units 18 | . 5 . . 1 3 . . . . . 2 . . . . 3 . . . . 4 . . . . . . . . Scanalyzers 24 | . . . . 4 2 . . . . . 4 . . . . 12 . . . . . . . . . . 2 . . Garrison Access 4 | . . . . . 3 . . . . . . . . . . 1 . . . . . . . . . . . . . Terminal Hacks 122 | . 4 . 5 3 5 1 . . . . 6 . . 31 . 2 . . 17 . 12 6 . . 2 8 20 . . Record 22 | . . . 4 . . . . . . . . . . 11 . . . . 5 . . . . . . . 2 . . Part Schematic 22 | . . . . . 3 . . . . . 1 . . 11 . . . . 4 . 1 1 . . . 1 . . . Robot Schematic 6 | . . . . . . . . . . . . . . 6 . . . . . . . . . . . . . . . Robot Analysis 7 | . 1 . . . . . . . . . 1 . . . . . . . 4 . 1 . . . . . . . . Prototype ID Bank 12 | . . . . 1 . . . . . . 1 . . 3 . . . . 4 . 1 . . . . 1 1 . . Open Door 3 | . . . . . . 1 . . . . . . . . . . . . . . 1 . . . . . 1 . . Branch Access Points 5 | . . . . 1 . . . . . . 1 . . . . 1 . . . . 1 . . . . 1 . . . Emergency Access Points 2 | . . . . . . . . . . . . . . . . . . . . . 1 . . . . . 1 . . Machine Index 1 | . . . . . . . . . . . . . . . . . . . . . 1 . . . . . . . . Terminal Index 7 | . 1 . . 1 1 . . . . . 1 . . . . . . . . . 1 . . . . 1 1 . . Alert Level 10 | . . . . . . . . . . . . . . . . 1 . . . . 1 1 . . 2 1 4 . . Unreport Threat 9 | . . . . . 1 . . . . . . . . . . . . . . . 2 2 . . . 3 1 . . Locate Traps 5 | . 1 . . . . . . . . . 1 . . . . . . . . . . 1 . . . . 2 . . Patrol Status 1 | . . . . . . . . . . . . . . . . . . . . . . 1 . . . . . . . Reinforcement Status 1 | . . . . . . . . . . . . . . . . . . . . . . . . . . . 1 . . Recall Reinforcements 2 | . . . . . . . . . . . . . . . . . . . . . . . . . . . 2 . . Hauler Manifests 3 | . 1 . . . . . . . . . . . . . . . . . . . 1 . . . . . 1 . . Registered Components 1 | . . . . . . . . . . . . . . . . . . . . . . . . . . . 1 . . Zone Layout 2 | . . . . . . . . . . . . . . . . . . . . . . . . . . . 2 . . Derelict Proto ID Bank 1 | . . . 1 . . . . . . . . . . . . . . . . . . . . . . . . . . Fabricator Hacks 21 | . . . . . 10 . . . . . 6 . . . . 3 . . . . . . . . . 2 . . . Network Status 3 | . . . . . 1 . . . . . 1 . . . . 1 . . . . . . . . . . . . . Load Schematic 9 | . . . . . 5 . . . . . 2 . . . . 1 . . . . . . . . . 1 . . . Build 9 | . . . . . 4 . . . . . 3 . . . . 1 . . . . . . . . . 1 . . . Repair Station Hacks 12 | . 2 . . 2 . . . . . . 2 . . . . 2 . . . . . 4 . . . . . . . Scan Component 6 | . 1 . . 1 . . . . . . 1 . . . . 1 . . . . . 2 . . . . . . . Repair 6 | . 1 . . 1 . . . . . . 1 . . . . 1 . . . . . 2 . . . . . . . Recycling Unit Hacks 5 | . 1 . . 1 1 . . . . . . . . . . 1 . . . . 1 . . . . . . . . Retrieve Components 5 | . 1 . . 1 1 . . . . . . . . . . 1 . . . . 1 . . . . . . . . Scanalyzer 21 | . . . . 4 2 . . . . . 2 . . . . 12 . . . . . . . . . . 1 . . Insert Component 10 | . . . . 2 1 . . . . . 1 . . . . 5 . . . . . . . . . . 1 . . Analyze 11 | . . . . 2 1 . . . . . 1 . . . . 7 . . . . . . . . . . . . . Garrison Access Hacks 1 | . . . . . 1 . . . . . . . . . . . . . . . . . . . . . . . . Seal Access 1 | . . . . . 1 . . . . . . . . . . . . . . . . . . . . . . . . Unauthorized Hacks 47 | . 9 . . 8 13 . . . . . 2 . . . . . . . . . 7 2 . . . 3 3 . . Terminals 36 | . 7 . . 8 9 . . . . . 1 . . . . . . . . . 4 2 . . . 2 3 . . Assimilate 1 | . . . . . 1 . . . . . . . . . . . . . . . . . . . . . . . . Botnet 10 | . 1 . . 1 3 . . . . . . . . . . . . . . . 1 2 . . . 1 1 . . Operators 5 | . 1 . . 1 . . . . . . 1 . . . . . . . . . . . . . . 1 1 . . Skim 20 | . 5 . . 6 5 . . . . . . . . . . . . . . . 3 . . . . . 1 . . Fabricators 4 | . . . . . 3 . . . . . . . . . . . . . . . . . . . . 1 . . . Prioritize 3 | . . . . . 2 . . . . . . . . . . . . . . . . . . . . 1 . . . Recompile 1 | . . . . . 1 . . . . . . . . . . . . . . . . . . . . . . . . Repair Stations . | . . . . . . . . . . . . . . . . . . . . . . . . . . . . . . Recycling Units 7 | . 2 . . . 1 . . . . . 1 . . . . . . . . . 3 . . . . . . . . Reject 1 | . . . . . . . . . . . . . . . . . . . . . 1 . . . . . . . . Recyclers 2 | . . . . . 1 . . . . . . . . . . . . . . . 1 . . . . . . . . Mask 2 | . . . . . . . . . . . 1 . . . . . . . . . 1 . . . . . . . . Tunnel 2 | . 2 . . . . . . . . . . . . . . . . . . . . . . . . . . . . Scanalyzers . | . . . . . . . . . . . . . . . . . . . . . . . . . . . . . . Garrison Access . | . . . . . . . . . . . . . . . . . . . . . . . . . . . . . . Data Cores Recovered 2 | . . . . . . . . . . . . . . . . . . . . . . 1 . . . 1 . . . Used . | . . . . . . . . . . . . . . . . . . . . . . . . . . . . . . Hacking Detections 74 | . 10 . . 11 16 . . . . . 7 . . . . 7 . . . . 5 7 . . 2 2 7 . . Full Trace Events 15 | . 2 . . 4 4 . . . . . 3 . . . . 1 . . . . . . . . . 1 . . . Feedback Events 2 | . . . . 1 . . . . . . 1 . . . . . . . . . . . . . . . . . . Corruption 1 | . . . . 1 . . . . . . . . . . . . . . . . . . . . . . . . . Hackware Fried 1 | . . . . . . . . . . . 1 . . . . . . . . . . . . . . . . . . Feedback Blocked . | . . . . . . . . . . . . . . . . . . . . . . . . . . . . . . Robot Schematics Acquired 8 | . . . . . . . . . . . . . . 6 . . . . . . . . . . . . 1 . 1 Robots Built . | . . . . . . . . . . . . . . . . . . . . . . . . . . . . . . Authchips . | . . . . . . . . . . . . . . . . . . . . . . . . . . . . . . Time . | . . . . . . . . . . . . . . . . . . . . . . . . . . . . . . Total Robot Build Rating . | . . . . . . . . . . . . . . . . . . . . . . . . . . . . . . Part Schematics Acquired 36 | . . . . 2 4 . . . . . 2 . . 11 . 5 . . 4 . 1 1 . . . 1 4 . 1 Parts Built 10 | . . . . . 4 . . . . . 4 . . . . 1 . . . . . . . . . 1 . . . Authchips 1 | . . . . . 1 . . . . . . . . . . . . . . . . . . . . . . . . Time 501 | . . . . . 145 . . . . . 248 . . . . 53 . . . . . . . . . 55 . . . Total Part Build Rating 52 | . . . . . 15 . . . . . 22 . . . . 6 . . . . . . . . . 9 . . . Parts Repaired 6 | . 1 . . 1 . . . . . . 1 . . . . 1 . . . . . 2 . . . . . . . Time 228 | . 26 . . 70 . . . . . . 25 . . . . 25 . . . . . 82 . . . . . . . Parts Recycled . | . . . . . . . . . . . . . . . . . . . . . . . . . . . . . . Recycled Matter . | . . . . . . . . . . . . . . . . . . . . . . . . . . . . . . Retrieved Matter . | . . . . . . . . . . . . . . . . . . . . . . . . . . . . . . Retrieved Components 35 | . 10 . . 10 6 . . . . . . . . . . . . . . . 9 . . . . . . . . Parts Scanalyzed 9 | . . . . 2 1 . . . . . 1 . . . . 5 . . . . . . . . . . . . . Part Schematics Acquired 9 | . . . . 2 1 . . . . . 1 . . . . 5 . . . . . . . . . . . . . Parts Damaged . | . . . . . . . . . . . . . . . . . . . . . . . . . . . . . . Bothacking | -11 -10 -10 -10 -8 -7 -7 -7 -7 -7 -6 -6 -6 -6 -6 -5 -5 -5 -5 -5 -4 -4 -4 -4 -4 -4 -3 -3 -2 -2 ------------ Run | Yrd Mat Min Sub Mat Fac Low Low Zio Dee Pro Fac Low Low Dat Pro Fac Upp Upp Zhi Pro Fac Ext Cet Arc Hub Res Qua Res Tes Used RIF Installer . | . . . . . . . . . . . . . . . . . . . . . . . . . . . . . . Robots Hacked 4 | . . . . . 3 . . 1 . . . . . . . . . . . . . . . . . . . . . Non-combat 3 | . . . . . 3 . . . . . . . . . . . . . . . . . . . . . . . . Combat 1 | . . . . . . . . 1 . . . . . . . . . . . . . . . . . . . . . Robot Hacks Applied 5 | . . . . . 4 . . 1 . . . . . . . . . . . . . . . . . . . . . parse_system 1 | . . . . . . . . 1 . . . . . . . . . . . . . . . . . . . . . no_distress 1 | . . . . . 1 . . . . . . . . . . . . . . . . . . . . . . . . find_chute 1 | . . . . . 1 . . . . . . . . . . . . . . . . . . . . . . . . find_fabricator 1 | . . . . . 1 . . . . . . . . . . . . . . . . . . . . . . . . find_dsf 1 | . . . . . 1 . . . . . . . . . . . . . . . . . . . . . . . . Relay Couplers Released 3 | . . . . . . . . . . . . . . . . 2 . . . . . . . . 1 . . . . Machine Destruction 3 | . . . . . . . . . . . . . . . . 2 . . . . . . . . 1 . . . . Fabnet Peak Effective % . | . . . . . . . . . . . . . . . . . . . . . . . . . . . . . . Robots Rewired 10 | . . . . . 1 . . . . . . . . . . . . . . . . 9 . . . . . . . Allies Hacked . | . . . . . . . . . . . . . . . . . . . . . . . . . . . . . . Hacks Repelled . | . . . . . . . . . . . . . . . . . . . . . . . . . . . . . . Allies | -11 -10 -10 -10 -8 -7 -7 -7 -7 -7 -6 -6 -6 -6 -6 -5 -5 -5 -5 -5 -4 -4 -4 -4 -4 -4 -3 -3 -2 -2 -------- Run | Yrd Mat Min Sub Mat Fac Low Low Zio Dee Pro Fac Low Low Dat Pro Fac Upp Upp Zhi Pro Fac Ext Cet Arc Hub Res Qua Res Tes Total Allies 29 | . . 3 . . 2 . . . . . . . . . . . . . . . . 19 5 . . . . . . Largest Group 15 | . . 3 3 . 2 . . . . . . . . . . . . . . . . 11 15 5 3 . . . . Highest-Rated Group 1006 | . . 40 40 . 56 . . . . . . . . . . . . . . . . 578 1006 430 288 . . . . Highest-Rated Ally 159 | . . 16 16 . 30 . . . . . . . . . . . . . . . . 159 159 96 96 . . . . Total Orders 14 | . . . . . 3 . . . . . 5 . . . . 2 . . . . . . 1 2 1 . . . . STAY 5 | . . . . . 2 . . . . . . . . . . . . . . . . . 1 1 1 . . . . FOLLOW 2 | . . . . . 1 . . . . . . . . . . . . . . . . . . 1 . . . . . EXPLORE 1 | . . . . . . . . . . . . . . . . 1 . . . . . . . . . . . . . RETURN 6 | . . . . . . . . . . . 5 . . . . 1 . . . . . . . . . . . . . Ally Attacks 286 | . . . 24 . . . . . . . . . . . . . . . . . . 135 69 39 19 . . . . Total Damage 7726 | . . . 276 . . . . . . . . . . . . . . . . . . 3486 2048 1312 604 . . . . Kills 36 | . . . 3 . . . . . . . . . . . . . . . . . . 17 8 3 5 . . . . Allies Corrupted . | . . . . . . . . . . . . . . . . . . . . . . . . . . . . . . Allies Melted . | . . . . . . . . . . . . . . . . . . . . . . . . . . . . . . Intel | -11 -10 -10 -10 -8 -7 -7 -7 -7 -7 -6 -6 -6 -6 -6 -5 -5 -5 -5 -5 -4 -4 -4 -4 -4 -4 -3 -3 -2 -2 ------- Run | Yrd Mat Min Sub Mat Fac Low Low Zio Dee Pro Fac Low Low Dat Pro Fac Upp Upp Zhi Pro Fac Ext Cet Arc Hub Res Qua Res Tes Robot Analysis Total 7 | . 1 . . . . . . . . . 1 . . . . . . . 4 . 1 . . . . . . . . Derelict Logs Recovered 13 | . . 2 3 . . 1 . 2 . 1 . . 1 . . . 1 1 . 1 . . . . . . . . . Drone Launches 7 | . . . . . . . . . . . 5 . . . . 2 . . . . . . . . . . . . . Drone Recoveries 7 | . . . . . . . . . . . 5 . . . . 2 . . . . . . . . . . . . . Exploration | -11 -10 -10 -10 -8 -7 -7 -7 -7 -7 -6 -6 -6 -6 -6 -5 -5 -5 -5 -5 -4 -4 -4 -4 -4 -4 -3 -3 -2 -2 ------------- Run | Yrd Mat Min Sub Mat Fac Low Low Zio Dee Pro Fac Low Low Dat Pro Fac Upp Upp Zhi Pro Fac Ext Cet Arc Hub Res Qua Res Tes Turns Passed 53356 | 158 3210 2467 5563 4364 1966 355 257 600 5300 378 2909 790 1275 228 1173 3253 2930 838 706 984 2049 2334 478 993 2022 1442 1912 1888 534 Spaces Moved 23364 | 73 1358 754 1658 1467 3238 728 334 1125 2536 193 1145 337 593 89 328 1395 957 355 279 348 700 775 160 156 611 407 605 512 148 Core 12 | 4 . . . . . . . . 3 . . . . . . . . . . . . . . 5 . . . . . Treads 5493 | 69 1358 754 1658 1467 . . . . . . . . . . . 4 15 . . . . . . . 8 37 19 19 85 Legs 11734 | . . . . . . . . . 1833 193 1145 337 593 89 328 1391 942 355 279 348 700 775 160 151 603 370 586 493 63 Wheels . | . . . . . . . . . . . . . . . . . . . . . . . . . . . . . . Hover 1 | . . . . . . . . . 1 . . . . . . . . . . . . . . . . . . . . Flight 6124 | . . . . . 3238 728 334 1125 699 . . . . . . . . . . . . . . . . . . . . Fastest Speed 40 | 50 160 240 320 240 40 40 40 40 40 143 143 210 176 176 176 176 210 210 179 179 180 180 210 240 175 210 240 210 160 Average Speed 177 | 153 214 306 320 241 40 40 40 48 139 178 196 218 200 176 176 178 213 210 209 203 216 236 233 336 227 238 251 246 227 Slowest Speed 3250 | 160 240 320 320 245 40 40 40 80 750 186 285 300 210 176 176 410 410 210 270 240 300 300 240 3250 300 330 385 330 480 Overloaded Moves . | . . . . . . . . . . . . . . . . . . . . . . . . . . . . . . Propulsion Burnouts . | . . . . . . . . . . . . . . . . . . . . . . . . . . . . . . Robots Hopped 21 | . . . . . 20 1 . . . . . . . . . . . . . . . . . . . . . . . Cave-ins Triggered 1 | . . . . . . . . . . . . . . . . . . . . 1 . . . . . . . . . Teleports 1 | . . . . . . . . . . . . . . . . . . . . 1 . . . . . . . . . Exploration Rate (%) 60 | 4 98 100 93 97 64 79 60 84 88 42 33 58 63 69 59 48 74 50 60 45 22 88 66 81 53 16 84 17 15 Regions Visited 29 Branch Regions 21 Pre-discovered Areas 14 | . 2 . 3 3 . . . 2 . . . . . 1 . . . . 3 . . . . . . . . . . Known Exits Taken 18 | . 1 . 1 1 1 1 1 1 1 1 1 1 . . 1 1 . . . . 1 1 . . 1 1 . 1 . Unknown Exits Taken 11 | 1 . 1 . . . . . . . . . . 1 1 . . 1 1 1 1 . . 1 1 . . 1 . . Scrap Searched 23 | . . 3 6 . . 2 1 2 . 1 . . 1 . 2 . 2 3 . . . . . . . . . . . Spaces Dug 251 | . 5 10 14 1 23 3 . . 9 . 20 . 20 . . 20 33 1 . 13 12 . . . 3 40 10 11 3 Terrain Destroyed 1667 | . 8 15 18 62 23 3 48 . 150 4 91 4 43 . 22 152 90 12 . 61 42 12 1 2 524 76 27 82 95 Melee 57 | . . 10 14 1 23 1 . . 5 . . . . . . . . . . . . . . . . . . . 3 Projectile 547 | . 5 . 4 30 . 2 . . 21 4 63 4 43 . 22 51 71 12 . 40 42 12 1 2 20 12 27 49 10 AOE 1063 | . 3 5 . 31 . . 48 . 124 . 28 . . . . 101 19 . . 21 . . . . 504 64 . 33 82 Terrain Rammed . | . . . . . . . . . . . . . . . . . . . . . . . . . . . . . . Walls Destroyed . | . . . . . . . . . . . . . . . . . . . . . . . . . . . . . . Machines Disabled . | . . . . . . . . . . . . . . . . . . . . . . . . . . . . . . Actions | -11 -10 -10 -10 -8 -7 -7 -7 -7 -7 -6 -6 -6 -6 -6 -5 -5 -5 -5 -5 -4 -4 -4 -4 -4 -4 -3 -3 -2 -2 --------- Run | Yrd Mat Min Sub Mat Fac Low Low Zio Dee Pro Fac Low Low Dat Pro Fac Upp Upp Zhi Pro Fac Ext Cet Arc Hub Res Qua Res Tes Total 32343 | 95 1552 846 1821 2005 3788 773 450 1173 4031 218 1534 376 632 162 867 1898 1703 426 404 556 1001 1215 256 605 1044 811 853 942 306 Wait 5342 | . 71 20 14 203 366 29 111 28 1183 6 139 30 7 71 499 191 628 45 59 160 78 252 55 414 153 312 64 143 11 Move 23293 | 72 1357 753 1657 1466 3198 725 333 1124 2535 192 1144 336 592 88 327 1394 956 354 278 346 699 774 159 155 610 406 604 511 148 Hop 20 | . . . . . 19 1 . . . . . . . . . . . . . . . . . . . . . . . Pick Up 328 | 3 31 8 22 33 8 1 . 1 37 . 12 . 1 . 1 22 15 2 13 2 22 10 6 6 20 7 21 19 5 Fast Attach 220 | 8 . . 4 23 13 1 . 4 17 3 13 . 2 . 1 19 2 3 7 . 9 22 6 2 19 3 10 9 20 Attach 131 | . 1 . 5 9 7 . . . 9 . 3 . . . 1 19 . . 3 . 9 . . 1 14 6 6 19 19 Detach 81 | 1 . . 4 1 2 . . . 5 1 5 . . 1 1 6 2 . 3 3 6 4 1 . 10 5 2 6 12 Swap 273 | 1 16 13 22 42 29 3 2 5 18 1 13 . 1 . . 15 7 3 1 5 15 10 1 . 10 9 17 12 2 Drop 628 | . 22 8 24 72 32 2 . 6 58 9 33 1 6 2 7 50 11 7 30 3 26 55 19 14 35 19 43 24 10 Fire 1661 | 10 49 17 32 152 2 5 3 4 92 6 165 9 23 . 30 170 82 12 . 36 133 46 9 13 167 43 84 197 70 Melee 245 | . . 25 37 1 58 6 1 1 77 . . . . . . . . . 10 . . 21 . . . . . . 8 Ram . | . . . . . . . . . . . . . . . . . . . . . . . . . . . . . . Kick 14 | . . . . . . . . . . . 5 . . . . 1 . . . . 4 1 . . 1 . . 2 . Crush 15 | . 5 2 . 3 . . . . . . . . . . . 1 . . . . . . . . . 1 2 . 1 Escape Stasis 31 | . . . . . . . . . . . . . . . . 10 . . . 1 . 20 . . . . . . . Rewire . | . . . . . . . . . . . . . . . . . . . . . . . . . . . . . . Trap 55 | . . . . . 50 . . . . . . . . . . . . . . . . . . . 5 . . . . Miscellaneous 6 | . . . . . 4 . . . . . 2 . . . . . . . . . . . . . . . . . . Route ------- -11/Scrapyard -10/Materials (discovered 5 exits: *Mat x3 / *Min x2) -10/Mines (discovered 3 exits: *Mat x2 / *Sub) -10/Subcaves (discovered 3 exits: *Mat x2 / Rec) -8/Materials (discovered 4 exits: *Fac x3 / *Sto) -7/Factory (discovered 6 exits: *Fac x4 / *Low x2) -7/Lower Caves -7/Lower Caves (discovered 2 exits: *Fac / *Zio) -7/Zion (discovered 2 exits: *Dee / [*Pro]) -7/Deep Caves -6/Proximity Caves -6/Factory (discovered 6 exits: *Fac x4 / *Low x2) -6/Lower Caves -6/Lower Caves -6/Data Miner -5/Proximity Caves -5/Factory (discovered 2 exits: *Upp x2) -5/Upper Caves -5/Upper Caves -5/Zhirov -4/Proximity Caves -4/Factory (discovered 5 exits: *Upp x2 / *Ext x2 / Arm) -4/Extension (discovered 2 exits: *Res / *Cet) -4/Cetus (discovered 2 exits: *Res / [*Arc]) -4/Archives (discovered 3 exits: *Res / *Hub x2) -4/Hub_04(d) (discovered 2 exits: *Res x2) -3/Research (discovered 3 exits: *Res / *Qua x2) -3/Quarantine -2/Research -2/Testing History --------- Turn | Location | Event 7 | -11/Scrapyard | Discovered new exit (range 15) 159 | -11/Scrapyard | Entered Materials 324 | -10/Materials | Build established: Mutant 368 | -10/Materials | Central database locked down 547 | -10/Materials | Discovered new exit (range 13) 688 | -10/Materials | Discovered new exit (range 8) 958 | -10/Materials | Discovered new exit (range 11) 1204 | -10/Materials | Discovered new exit (range 15) 1457 | -10/Materials | Discovered new exit (range 5) 1594 | -10/Materials | Repaired Lgt. Treads 3292 | -10/Materials | Identified exit to Materials 3366 | -10/Materials | Identified exit to Mines 3369 | -10/Materials | Entered Mines 3374 | -10/Mines | Assembled infested the area 3379 | -10/Mines | Assisted by a Guerilla fighting off Assembled 3446 | -10/Mines | A weapon hastily lodged in a ceiling crevice suddenly fell to the ground 3626 | -10/Mines | Learned Materials terminal intel 3958 | -10/Mines | Discovered exit to Materials (range 11) 4271 | -10/Mines | Learned location of 1 exit from Materials 4291 | -10/Mines | Discovered exit to Materials (range 13) 4748 | -10/Mines | Assisted by bots powering up and referring to "LRC-V3" 5826 | -10/Mines | Discovered new exit (range 4) 5836 | -10/Mines | Entered Subcaves 5836 | -10/Subcaves | Accompanied by 3 allies 5914 | -10/Subcaves | Learned location of Zion (-7) 5914 | -10/Subcaves | Met a Zionite searching for "candidates" 5956 | -10/Subcaves | Shifting Twisted Machinery released Sub. Laser 5956 | -10/Subcaves | Shifting Twisted Machinery released Sub. Beam Cannon 6081 | -10/Subcaves | Shifting Twisted Machinery released Sub. Beam Cannon 6219 | -10/Subcaves | A swath of the cavern ceiling suddenly collapsed 6549 | -10/Subcaves | Shifting Twisted Machinery released Shrapnel Trap 6727 | -10/Subcaves | Shifting Twisted Machinery released Multitool 6731 | -10/Subcaves | Shifting Twisted Machinery released Sub. Laser 7436 | -10/Subcaves | A Subdweller sparked back to life 7436 | -10/Subcaves | A Subdweller sparked back to life 7436 | -10/Subcaves | A Subdweller sparked back to life 7459 | -10/Subcaves | Found Prototype Leg 7869 | -10/Subcaves | Core integrity fell below 50% 8807 | -10/Subcaves | Identified exit to Materials 9283 | -10/Subcaves | Visited Clippyterm 9292 | -10/Subcaves | Identified exit to Recycling 9292 | -10/Subcaves | Learned location of Extension (-4) 10676 | -10/Subcaves | Disturbed a concealed Subdweller 10739 | -10/Subcaves | Disturbed a concealed Subdweller 10882 | -10/Subcaves | Curiously followed by a Cobbler waking with a query about "LVR3C" 10973 | -10/Subcaves | Build established: Scavenger-Mutant 11176 | -10/Subcaves | Visited 4L-MR0's lab 11188 | -10/Subcaves | Identified Cargo Legs 11205 | -10/Subcaves | Found Flightbrick 11399 | -10/Subcaves | Entered Materials 11399 | -8/Materials | Evolved 4 slots: Propulsion x2, Utility x2 11400 | -8/Materials | Identified exit to Factory 11401 | -8/Materials | Loaded intel: 12 terminal locations 12231 | -8/Materials | Discovered exit to Factory (range 16) 12269 | -8/Materials | Build established: Mutant 12650 | -8/Materials | Build established: Scavenger-Mutant 12994 | -8/Materials | Discovered new exit (range 9) 13377 | -8/Materials | Identified exit to Storage 13510 | -8/Materials | Discovered exit to Factory (range 11) 14133 | -8/Materials | Learned Factory trap positions 14279 | -8/Materials | Learned location of 2 exits from Lower Caves 14431 | -8/Materials | Learned 4 Lower Caves zone layouts 14486 | -8/Materials | Garrison activated, responded to threat 14547 | -8/Materials | Learned location of Storage (-8) 14572 | -8/Materials | Destroyed 7 combat bots 14603 | -8/Materials | Learned 8 Factory zone layouts 14932 | -8/Materials | Repaired Imp. Spread Laser 15200 | -8/Materials | Lost 3 parts (1p2n) 15399 | -8/Materials | First assault squad dispatched 15763 | -8/Materials | Entered Factory 15763 | -7/Factory | Evolved 2 slots: Utility x2 15764 | -7/Factory | Identified exit to Factory 15766 | -7/Factory | Loaded intel: 88 trap records 15782 | -7/Factory | Attached Flightbrick, gained temporary slots: Utility x3 16161 | -7/Factory | Learned location of 1 exit from Hub_04(d) 16192 | -7/Factory | Learned location of 1 exit from Extension 16213 | -7/Factory | Learned Hub_04(d) trap positions 16226 | -7/Factory | Learned Extension stockpile data 16227 | -7/Factory | Learned location of 1 exit from Proximity Caves 16237 | -7/Factory | Learned 2 Proximity Caves zone layouts 16240 | -7/Factory | Fabricated Hacking Suite? 16351 | -7/Factory | Discovered new exit (range 7) 16361 | -7/Factory | Identified exit to Lower Caves 16421 | -7/Factory | Fabricated Hacking Suite (x1) 16865 | -7/Factory | Build established: Hacker-Mutant 16960 | -7/Factory | Fabricated Cld. Particle Cannon? 17301 | -7/Factory | Discovered exit to Lower Caves (range 15) 17615 | -7/Factory | Fabricated Lrn. Missile Launcher (x1) 17729 | -7/Factory | Entered Lower Caves 17730 | -7/Lower Caves | Identified exit to Lower Caves 17763 | -7/Lower Caves | Learned location of 2 exits from Factory 17982 | -7/Lower Caves | Encountered a Warlord checkpoint 18084 | -7/Lower Caves | Entered another Lower Caves area 18084 | -7/Lower Caves | Discovered exit to Factory (range 14) 18085 | -7/Lower Caves | Encountered a Warlord checkpoint 18085 | -7/Lower Caves | Identified exit to Zion 18341 | -7/Lower Caves | Entered Zion 18354 | -7/Zion | System corruption cleaned by Quarantine Array 18378 | -7/Zion | Given the Hacking Drone Bay 18385 | -7/Zion | Found Prototype Device 18385 | -7/Zion | Identified Hacking Drone Bay 18397 | -7/Zion | Discovered new exit (range 11) 18573 | -7/Zion | Met Imprinter 18634 | -7/Zion | Learned location of 1 exit from Factory 18639 | -7/Zion | Identified exit to Deep Caves 18650 | -7/Zion | Learned location of Quarantine (-3) 18875 | -7/Zion | Visited the Megawrench Repair Shop 18875 | -7/Zion | Megawrench repaired 8 parts 18940 | -7/Zion | Saw the warning signs outside the Deep Caves entrance 18941 | -7/Zion | Entered Deep Caves 19053 | -7/Deep Caves | Build established: Mutant 19060 | -7/Deep Caves | Attacked by Z-Imprinter 19082 | -7/Deep Caves | Destroyed Z-Imprinter 19118 | -7/Deep Caves | Z-Facility disabled 19233 | -7/Deep Caves | Discovered new exit (range 7) 19235 | -7/Deep Caves | Identified exit to Proximity Caves 19276 | -7/Deep Caves | Spotted AG-43030 19310 | -7/Deep Caves | Destroyed AG-43030 19313 | -7/Deep Caves | Found GOLEM Unit 19651 | -7/Deep Caves | Found Prototype Protection 19651 | -7/Deep Caves | Identified Zio. Weapon Casing 19708 | -7/Deep Caves | Build established: Golem 20148 | -7/Deep Caves | Spotted AG-40554 20187 | -7/Deep Caves | Destroyed AG-40554 20242 | -7/Deep Caves | Build established: Scavenger-Mutant 20371 | -7/Deep Caves | Found Zio. Weapon Casing 20433 | -7/Deep Caves | Found Zio. Weapon Casing 20644 | -7/Deep Caves | Found Prototype Leg 20644 | -7/Deep Caves | Identified Potential Leg 20688 | -7/Deep Caves | Triggered Deep Caves wall 20688 | -7/Deep Caves | Spotted AS-35561 20688 | -7/Deep Caves | Spotted AS-30724 20689 | -7/Deep Caves | Exposed GOLEM chamber 20689 | -7/Deep Caves | Destroyed AS-30724 20702 | -7/Deep Caves | Destroyed AS-35561 20758 | -7/Deep Caves | Destroyed 40 combat bots 20878 | -7/Deep Caves | Found GOLEM Unit 20980 | -7/Deep Caves | Found GOLEM Unit 21402 | -7/Deep Caves | Build established: Golem 21570 | -7/Deep Caves | Attached Cargo Legs, gained temporary slots: Utility x2 21642 | -7/Deep Caves | Found GOLEM Unit 21980 | -7/Deep Caves | Found GOLEM Unit 21985 | -7/Deep Caves | Found GOLEM Unit 22223 | -7/Deep Caves | Found Surveybot 24 Chip 22226 | -7/Deep Caves | Found Unknown Device 22229 | -7/Deep Caves | Identified Surveybot 24 Scanner 23060 | -7/Deep Caves | Found Zio. Weapon Casing 23069 | -7/Deep Caves | Found Zio. Weapon Casing 23342 | -7/Deep Caves | Build established: Mutant 23459 | -7/Deep Caves | Found GOLEM Unit 23732 | -7/Deep Caves | Build established: Golem 23893 | -7/Deep Caves | Found Zio. Weapon Casing 24241 | -7/Deep Caves | Entered Proximity Caves 24382 | -6/Proximity Caves | Learned Factory non-interactive machine intel 24619 | -6/Proximity Caves | Entered Factory 24619 | -6/Factory | Evolved 2 slots: Power x1, Utility x1 24620 | -6/Factory | Identified exit to Factory 24621 | -6/Factory | Loaded intel: 181 non-interactive machine locations 24779 | -6/Factory | Spotted B-75 Beast 25464 | -6/Factory | Identified exit to Lower Caves 25656 | -6/Factory | Discovered exit to Factory (range 14) 26017 | -6/Factory | Destroyed B-75 Beast 26029 | -6/Factory | Garrison activated, responded to threat 26232 | -6/Factory | Build established: Hacker-Golem 26244 | -6/Factory | Hacking Suite fried by hacking feedback 26280 | -6/Factory | Fabricated Adv. Shield Generator (x2) 26396 | -6/Factory | Fabricated Imp. Hacking Suite? 26541 | -6/Factory | Build established: Golem 26732 | -6/Factory | Repaired Imp. Heavy Armor Plating 27012 | -6/Factory | Fabricated Imp. Heavy Armor Plating? 27528 | -6/Factory | Entered Lower Caves 27529 | -6/Lower Caves | Identified exit to Lower Caves 27596 | -6/Lower Caves | Attacked by a delusional Derelict stockpiling parts 27718 | -6/Lower Caves | Attracted the attention of an 0b10 checkpoint 28318 | -6/Lower Caves | Entered another Lower Caves area 28448 | -6/Lower Caves | Encountered a Warlord checkpoint 28804 | -6/Lower Caves | Learned Factory stockpile data 29401 | -6/Lower Caves | Discovered new exit (range 10) 29593 | -6/Lower Caves | Entered Data Miner 29596 | -6/Data Miner | Discovered new exit (range 6) 29629 | -6/Data Miner | Met Data Miner 29663 | -6/Data Miner | Learned location of Section 7 (-2) 29663 | -6/Data Miner | Acquired the access code to Warlord's prototype stash 29693 | -6/Data Miner | Received God Mode back door access code from Data Miner 29821 | -6/Data Miner | Entered Proximity Caves 29823 | -5/Proximity Caves | Spotter reported a threat 29824 | -5/Proximity Caves | Spotter reported a threat 30450 | -5/Proximity Caves | Attracted the attention of an 0b10 checkpoint 30994 | -5/Proximity Caves | Entered Factory 30994 | -5/Factory | Evolved 2 slots: Utility x2 31594 | -5/Factory | Search patrols dispatched 31612 | -5/Factory | Repaired Imp. Heavy Armor Plating 32928 | -5/Factory | Found Unknown Device 32928 | -5/Factory | Identified Launcher Loader 33085 | -5/Factory | Identified exit to Upper Caves 33270 | -5/Factory | Build established: Hacker-Golem 33694 | -5/Factory | First assault squad dispatched 33720 | -5/Factory | Incoming assault squad redirected 33802 | -5/Factory | Destroyed 8 combat bots 33816 | -5/Factory | Lost 3 parts (1n1u1w) 33834 | -5/Factory | Spotted B-75 Beast 33900 | -5/Factory | Destroyed B-75 Beast 34001 | -5/Factory | Fabricated Adv. Hacking Suite (x1) 34073 | -5/Factory | High security lockdown imminent 34087 | -5/Factory | Lost 3 parts (1u2w) 34102 | -5/Factory | Destroyed 12 combat bots 34153 | -5/Factory | High security lockdown engaged 34188 | -5/Factory | Build established: Hacker-Mutant 34220 | -5/Factory | Lost 3 parts (1n2u) 34234 | -5/Factory | Core integrity fell below 50% 34247 | -5/Factory | Core integrity fell below 20% 34247 | -5/Factory | Entered Upper Caves 34274 | -5/Upper Caves | Lost 6 parts (2n1u3w) 34845 | -5/Upper Caves | Learned location of 1 exit from Factory 34888 | -5/Upper Caves | Build established: Golem 35172 | -5/Upper Caves | Attracted the attention of an 0b10 checkpoint 37160 | -5/Upper Caves | Discovered new exit (range 9) 37177 | -5/Upper Caves | Entered another Upper Caves area 37341 | -5/Upper Caves | Learned Factory trap positions 37426 | -5/Upper Caves | Found Alien Artifact 37427 | -5/Upper Caves | Identified Core Expander 37427 | -5/Upper Caves | Installed Core Expander, added new Utility slot 37978 | -5/Upper Caves | Discovered new exit (range 9) 38015 | -5/Upper Caves | Entered Zhirov 38016 | -5/Zhirov | Discovered new exit (range 3) 38060 | -5/Zhirov | Met Zhirov 38114 | -5/Zhirov | Learned location of Testing (-2) 38114 | -5/Zhirov | Learned location of Command (-1) 38138 | -5/Zhirov | Zhirov requested help retrieving the SGEMP Prototype 38184 | -5/Zhirov | Found Alien Artifact 38184 | -5/Zhirov | Identified Integrated Dissipator 38184 | -5/Zhirov | Installed Integrated Dissipator, increased core heat dissipation (+20) 38214 | -5/Zhirov | Found Alien Artifact 38721 | -5/Zhirov | Entered Proximity Caves 38953 | -4/Proximity Caves | Spotted B-86 Titan 38991 | -4/Proximity Caves | Destroyed B-86 Titan 39058 | -4/Proximity Caves | Attracted the attention of an 0b10 outpost 39071 | -4/Proximity Caves | Identified Transdimensional Reconstructor 39071 | -4/Proximity Caves | Warped through subspace 39512 | -4/Proximity Caves | Crushed by falling debris 39602 | -4/Proximity Caves | Discovered new exit (range 15) 39643 | -4/Proximity Caves | Learned Research garrison access intel 39705 | -4/Proximity Caves | Entered Factory 39705 | -4/Factory | Evolved 2 slots: Utility x2 39706 | -4/Factory | Identified exit to Extension 39707 | -4/Factory | Identified exit to Upper Caves 39708 | -4/Factory | Loaded intel: 88 trap records 40004 | -4/Factory | Spotted B-86 Titan 40036 | -4/Factory | Build established: Hacker-Golem 40060 | -4/Factory | Garrison activated, responded to threat 40154 | -4/Factory | Lost 4 parts (1p2u1w) 40347 | -4/Factory | Destroyed 7 combat bots 40561 | -4/Factory | Found Exp. Signal Interpreter 40699 | -4/Factory | Discovered exit to Upper Caves (range 14) 40762 | -4/Factory | Identified exit to Armory 41127 | -4/Factory | Lost 3 parts (1n2u) 41141 | -4/Factory | Destroyed 10 combat bots 41754 | -4/Factory | Entered Extension 41755 | -4/Extension | Identified exit to Cetus 42369 | -4/Extension | Rescued A7 42439 | -4/Extension | Rescued a captive Derelict 42725 | -4/Extension | Rescued a captive Derelict 42727 | -4/Extension | Rescued a captive Derelict 42761 | -4/Extension | Rescued a captive Derelict 42782 | -4/Extension | Rescued a captive Derelict 42783 | -4/Extension | Rescued a captive Derelict 43002 | -4/Extension | Spotted B-86 Titan 43020 | -4/Extension | Spotted B-86 Titan 43022 | -4/Extension | Destroyed B-86 Titan 43046 | -4/Extension | Allies destroyed B-86 Titan 43071 | -4/Extension | Lost 4 allies 43173 | -4/Extension | Rescued a captive Derelict 43345 | -4/Extension | Build established: Scavenger-Golem 43457 | -4/Extension | Rescued a captive Derelict 43677 | -4/Extension | Repaired Hrd. Heavy Armor Plating 43711 | -4/Extension | Build established: Commander-Golem 43715 | -4/Extension | Repaired Hrd. Medium Armor Plating 43848 | -4/Extension | Rescued a captive Derelict 43962 | -4/Extension | Discovered new exit (range 10) 44088 | -4/Extension | Entered Cetus 44088 | -4/Cetus | Accompanied by 11 allies (A7) 44093 | -4/Cetus | Acquired a Cetus Manufacturing Module code from A7 44115 | -4/Cetus | Spotted Cetus Guard 44117 | -4/Cetus | Destroyed Cetus Guard 44120 | -4/Cetus | Spotted Cetus Guard 44120 | -4/Cetus | Spotted Cetus Guard 44123 | -4/Cetus | Spotted Cetus Guard 44128 | -4/Cetus | Allies destroyed Cetus Guard 44130 | -4/Cetus | Allies destroyed Cetus Guard 44137 | -4/Cetus | Allies destroyed Cetus Guard 44255 | -4/Cetus | Started Cetus Manufacturing Module 44280 | -4/Cetus | Manufactured an Enhanced Grunt 44305 | -4/Cetus | Manufactured an Enhanced Grunt 44329 | -4/Cetus | Escorted A7 to Cetus Mainframe 44330 | -4/Cetus | Manufactured an Enhanced Grunt 44354 | -4/Cetus | Discovered new exit (range 16) 44355 | -4/Cetus | Manufactured an Enhanced Grunt 44380 | -4/Cetus | Manufactured an Enhanced Grunt 44397 | -4/Cetus | Spotted Cetus Guard 44402 | -4/Cetus | Spotted Cetus Guard 44404 | -4/Cetus | Destroyed Cetus Guard 44404 | -4/Cetus | Spotted Cetus Guard 44406 | -4/Cetus | Spotted Cetus Guard 44410 | -4/Cetus | Allies destroyed Cetus Guard 44418 | -4/Cetus | Allies destroyed Cetus Guard 44422 | -4/Cetus | Destroyed A7 44424 | -4/Cetus | Allies destroyed Cetus Guard 44427 | -4/Cetus | Extracted ID and sensor layout for unrecognized location from A7's data core 44433 | -4/Cetus | Discovered new exit (range 16) 44446 | -4/Cetus | Met Revision 17 44453 | -4/Cetus | Lost 5 allies 44515 | -4/Cetus | Found Prototype Device 44515 | -4/Cetus | Identified Exp. Thermal Shield 44566 | -4/Cetus | Entered Archives 44566 | -4/Archives | Accompanied by 5 allies 44670 | -4/Archives | Discovered new exit (range 16) 44727 | -4/Archives | Discovered new exit (range 15) 44865 | -4/Archives | Build established: Scavenger-Golem 45185 | -4/Archives | Discovered new exit (range 16) 45559 | -4/Archives | Entered Hub_04(d) 45559 | -4/Hub_04(d) | Accompanied by 3 allies 45560 | -4/Hub_04(d) | Identified exit to Research 45561 | -4/Hub_04(d) | Loaded intel: 23 trap records 45633 | -4/Hub_04(d) | Build established: Golem 46201 | -4/Hub_04(d) | Network Hub disabled 46254 | -4/Hub_04(d) | Spotted Lightning 46259 | -4/Hub_04(d) | Spotted Lightning 46267 | -4/Hub_04(d) | Spotted Lightning 46268 | -4/Hub_04(d) | Incoming assault squad redirected 46305 | -4/Hub_04(d) | System corruption reached 10% 46309 | -4/Hub_04(d) | First assault squad dispatched 46334 | -4/Hub_04(d) | Destroyed Lightning 46347 | -4/Hub_04(d) | Destroyed Lightning 46408 | -4/Hub_04(d) | Destroyed 15 combat bots 46451 | -4/Hub_04(d) | Core integrity fell below 50% 46481 | -4/Hub_04(d) | Lost 9 parts (1p1n6u1w) 46531 | -4/Hub_04(d) | Destroyed Lightning 46576 | -4/Hub_04(d) | Found Prototype Energy Cannon 46576 | -4/Hub_04(d) | Identified EMDS 46580 | -4/Hub_04(d) | Found Prototype Device 46580 | -4/Hub_04(d) | Identified Exp. Phase Shifter 46596 | -4/Hub_04(d) | Found EMDS 46760 | -4/Hub_04(d) | Found Prototype Processor 46760 | -4/Hub_04(d) | Identified Exp. Targeting Computer 46848 | -4/Hub_04(d) | Spotted Lightning 46863 | -4/Hub_04(d) | Destroyed Lightning 46900 | -4/Hub_04(d) | Spotted Lightning 46900 | -4/Hub_04(d) | Spotted Lightning 46906 | -4/Hub_04(d) | Destroyed 7 combat bots 46933 | -4/Hub_04(d) | Destroyed Lightning 46951 | -4/Hub_04(d) | Destroyed Lightning 46976 | -4/Hub_04(d) | Lost 4 parts (4u) 46984 | -4/Hub_04(d) | Found EMDS 47049 | -4/Hub_04(d) | Found Exp. Targeting Computer 47145 | -4/Hub_04(d) | Network Hub disabled 47234 | -4/Hub_04(d) | Discovered exit to Research (range 7) 47282 | -4/Hub_04(d) | System corruption reached 30% 47282 | -4/Hub_04(d) | Spotted Lightning 47282 | -4/Hub_04(d) | Spotted Lightning 47283 | -4/Hub_04(d) | Spotted Lightning 47299 | -4/Hub_04(d) | Destroyed Lightning 47319 | -4/Hub_04(d) | Destroyed Lightning 47334 | -4/Hub_04(d) | Destroyed Lightning 47361 | -4/Hub_04(d) | Found EMDS 47435 | -4/Hub_04(d) | Network Hub disabled 47581 | -4/Hub_04(d) | Entered Research 47581 | -3/Research | Evolved 2 slots: Power x1, Utility x1 47582 | -3/Research | Loaded intel: 3 garrison access locations 47763 | -3/Research | Build established: Hacker-Golem 47781 | -3/Research | Revision forces began assault on 0b10 47830 | -3/Research | Discovered new exit (range 19) 47864 | -3/Research | Lost 3 allies 47867 | -3/Research | Met up with Revision 17++ 47889 | -3/Research | Destroyed 8 combat bots 48009 | -3/Research | Identified exit to Quarantine 48281 | -3/Research | Research terminal network offline 48284 | -3/Research | Build established: Wizard-Golem 48380 | -3/Research | Fabricated Exp. Force Field (x1) 48437 | -3/Research | Spotted Striker 48579 | -3/Research | Spotted Striker 48620 | -3/Research | Lost 5 allies 48978 | -3/Research | Build established: Hacker-Golem 49023 | -3/Research | Entered Quarantine 49109 | -3/Quarantine | Found Alien Energy Cannon 49163 | -3/Quarantine | Found Alien Artifact 49371 | -3/Quarantine | Found Alien Slashing Weapon 49495 | -3/Quarantine | Scanned by Researcher 49579 | -3/Quarantine | Found Quantum Capacitor 49643 | -3/Quarantine | Found Alien Artifact 49707 | -3/Quarantine | Found Alien Artifact 49713 | -3/Quarantine | Identified Phase Armor 49759 | -3/Quarantine | Discovered new exit (range 23) 50245 | -3/Quarantine | Identified Sigix Broadsword 50260 | -3/Quarantine | Identified Core Cannon 50262 | -3/Quarantine | Identified Phase Redirector 50287 | -3/Quarantine | Found Prototype Device 50287 | -3/Quarantine | Identified Exp. Shield Generator 50406 | -3/Quarantine | Found Gamma Bomb Array 50445 | -3/Quarantine | Met incapacitated Sigix Warrior 50445 | -3/Quarantine | Lockdown squad dispatched 50452 | -3/Quarantine | Acquired the access code to the Sigix quarantine chamber 50457 | -3/Quarantine | Unlocked Sigix quarantine chamber 50466 | -3/Quarantine | Found Sigix Containment Pod 50490 | -3/Quarantine | Spotted Lightning 50495 | -3/Quarantine | Spotted Lightning 50503 | -3/Quarantine | Spotted Lightning 50507 | -3/Quarantine | System corruption reached 10% 50517 | -3/Quarantine | Destroyed Lightning 50531 | -3/Quarantine | Destroyed Lightning 50537 | -3/Quarantine | Destroyed Lightning 50837 | -3/Quarantine | Identified Subatomic Replicator 50935 | -3/Quarantine | Entered Research 50935 | -2/Research | Evolved 2 slots: Utility x2 51206 | -2/Research | Build established: Mutant 51858 | -2/Research | Spotted B-90 Cyclops 51942 | -2/Research | Core integrity fell below 50% 51966 | -2/Research | First assault squad dispatched 51970 | -2/Research | Destroyed B-90 Cyclops 51981 | -2/Research | Incoming assault squad redirected 52222 | -2/Research | System corruption reached 10% 52277 | -2/Research | Lost 6 parts (1p1n3u1w) 52388 | -2/Research | Discovered new exit (range 24) 52612 | -2/Research | Build established: Scavenger-Mutant 52796 | -2/Research | Found Quantum Capacitor 52815 | -2/Research | Identified exit to Testing 52823 | -2/Research | Entered Testing 52853 | -2/Testing | Lost 6 parts (1p1n3u1w) 52859 | -2/Testing | Found Prototype Energy Cannon 52859 | -2/Testing | Identified Potential Cannon 52863 | -2/Testing | Found Prototype Energy Cannon 52863 | -2/Testing | Identified Imp. Potential Cannon 53103 | -2/Testing | Core integrity fell below 20% 53108 | -2/Testing | First assault squad dispatched 53114 | -2/Testing | System corruption reached 30% 53136 | -2/Testing | Incoming assault squad redirected 53150 | -2/Testing | Lost 3 parts (1p1n1u) 53198 | -2/Testing | Lost 4 parts (1p2n1u) 53286 | -2/Testing | Lost 3 parts (1p1n1u) 53357 | -2/Testing | Destroyed by H-88 Terminator with KE Penetrator Last Messages --------------- Storage Unit. 53339_ The unstable cave ceiling collapses. 53340_ Slug penetrates Wall. 53340_ Penetrated by Slug. 53341_ The unstable cave ceiling collapses. 53343_ Penetrated by Slug. 53343_ R-10 Processor collects Corrupted Sml. Storage Unit. 53346_ Penetrated by Slug. 53348_ K-01 Serf collects debris. 53349_ Penetrated by Slug. 53351_ System corrupted: Component data lost. 53351_ U-05 Engineer builds a Wall. 53352_ K-01 Serf collects debris. 53352_ Adv. Transmission Jammer destroyed. 53352_ Penetrated by Slug. 53355_ Slammed into H-88 Terminator. 53356_ The unstable cave ceiling collapses. 53356_ K-01 Serf collects debris. 53357_ Penetrated by Slug. Map ----- +----------------------------------------------------+ | # """" #### """ """ # ###########?????? | | # """" # # """ """ # ###########?????? | | + #### """ """ # ########### "???? | | # # #### """ """ # ########### ""??? | | # # #### # # # "S ?? | | # # #### # # # "" ?? | | # ####################+###### # # "" | | # ###########/ # ###### # """ """ # | | # ########### # ###### # """ """ ###"""T | | # ########### """"" # ###### # """ """ ####### | | # ########### """"" # # ####### | | # ########### """"" + # """ """ ####### | | # ########### # + """ """ ##### " | | # ########### """"" + =![%# """ """ ##### " | | # ## # """"" ########[!%%# ##### | | # ## """ # """"" ######## [[[ " """ ##### | | # ## """ # # # = """ ##### | | # ## """ # """"" # %# """ ##### | | # ## """ # """"" # [ !# % k ##### | | # ## """ # """"" [## [||=#% ##### | | # ## """ # ## !% % % ## ########### | | # ## """ # ####![=# % % %= | | # ## ############# # | | # ######+############## | | % | | @ h ;;######### | | h ! ## | | ! ## | | # ################# ## # # # | | # ############### # """ + | | # ################ ######## ## " # | | # ############### # | | # ############### """ # | | # ############### " " # | | + # ## """ # | | # ###+###### # """" """" ## # | | # # ### # """" """" ################# | | # #" "### # """" """" ################# | | ######" ""### # """" """" #### # | | ######" "### # #### # | | #######" " ### + """" """" #### # | | ####### #""### # """" """" #### # | | #################### """" """" #### """ """ # | | #################### """" """" #### """ """ +? | | #################### #### """ """ ?? | | #################### #### ??? | | #################################### """ """??? | | #################################### """ ?????? | | #################################### ""???????? | | #################################### ???????? | +----------------------------------------------------+ Best States ------------- Heat Dissipation 189 Energy Generation 83 Energy Capacity 2400 Matter Stores 300 Matter Capacity 300 Sight Range 16 Robot Scan Range 15 Terrain Scan Range 24 Terrain Scan Density 2010 ECM Strength 1 Jamming Range 16 Power Amplification 30 Additional Mass Support 20 Base Temperature (-) 100 Corruption Block 8 Armor Coverage 1850 Resistance: KI 15 Resistance: TH 15 Resistance: EX 15 Resistance: EM 25 Resistance: I 15 Resistance: S 15 Resistance: P 15 Core Shielding 30 Propulsion Shielding 66 Utility Shielding 66 Weapon Shielding 100 Phase Shifting 20 Evasion (%) 70 Targeting Accuracy 28 Target Analysis 8 Core Analysis 8 Armor Integrity Analysis 40 Recoil Reduction 4 Matter Filtering 50 Energy Filtering 30 Particle Charging 25 Offensive Hacking 38 Defensive Hacking 36 Authchip Count 1 Item Schematics ----------------- Hacking Suite | -8/Materials | Scanalyzed Multitool | -8/Materials | Scanalyzed Cld. Particle Cannon | -7/Factory | Hacked Lrn. Missile Launcher | -7/Factory | Hacked Huge Storage Unit | -7/Factory | Scanalyzed Imp. Propulsion Shielding | -7/Factory | Hacked Imp. Hacking Suite | -6/Factory | Hacked Imp. Heavy Armor Plating | -6/Factory | Scanalyzed Combat Drone Bay | -6/Data Miner | Free Lgt. Regenerative Plating | -6/Data Miner | Free Cld. Gravmag System | -6/Data Miner | Free Imp. Matter Compressor | -6/Data Miner | Free Cld. Plasma Rifle | -6/Data Miner | Free Imp. Heavy Treads | -6/Data Miner | Free Imp. Remote Shield | -6/Data Miner | Free Adv. Datajack | -6/Data Miner | Free Rnf. Fission Core | -6/Data Miner | Free Adv. Trap Scanner | -6/Data Miner | Free Nova Cannon | -6/Data Miner | Free Adv. Hacking Suite | -5/Factory | Scanalyzed Imp. Utility Shielding | -5/Factory | Scanalyzed Hvy. Treads | -5/Factory | Scanalyzed Energy Filter | -5/Factory | Scanalyzed Lyr. Medium Armor Plating | -5/Factory | Scanalyzed Assault Drone Bay | -5/Zhirov | Free Exp. Heat Sink | -5/Zhirov | Free Exp. Optical Array | -5/Zhirov | Free Imp. Arc Thrower | -5/Zhirov | Free Adv. Powered Armor | -4/Factory | Hacked Hvy. Siege Treads | -4/Extension | Hacked Exp. Force Field | -3/Research | Hacked Com. Particle Reactor | -3/Quarantine | Archive Graviton Reactor | -3/Quarantine | Archive Centrium Light Armor Plating | -3/Quarantine | Archive Gravity Neutralizer | -3/Quarantine | Archive Cld. Antimatter Reactor | -2/Testing | Archive Robot Schematics ------------------ S-27 Virus | -6/Data Miner | Free B-60 Warrior | -6/Data Miner | Free A-15 Conveyor | -6/Data Miner | Free R-10 Processor | -6/Data Miner | Free Y-54 Guardian | -6/Data Miner | Free I-47 Archangel | -6/Data Miner | Free A-02 Transporter | -3/Quarantine | Archive C-65 Expert | -2/Testing | Archive Fabricated ------------ Hacking Suite | x1 | -7/Factory Hacking Suite | x1 | -7/Factory | Authchip Cld. Particle Cannon | x1 | -7/Factory Lrn. Missile Launcher | x1 | -7/Factory Adv. Shield Generator | x2 | -6/Factory | Preloaded Imp. Hacking Suite | x1 | -6/Factory Imp. Heavy Armor Plating | x1 | -6/Factory Adv. Hacking Suite | x1 | -5/Factory Exp. Force Field | x1 | -3/Research Alien Tech Used ----------------- Core Expander Integrated Dissipator Transdimensional Reconstructor Phase Armor Sigix Broadsword Core Cannon Phase Redirector Achievements -------------- None Challenges ------------ None Game ------ Seed FluxRefineryRedirector Manual? 0 Play Time 07:09:05 Cumulative 326.1 hours Start 2024.09.17 @ 18:42:28 End 2024.09.19 @ 13:32:11 Sessions 9 Manual Loads 0 Difficulty Rogue Special Mode None Game No. 229 Rogue 224 Adventurer 5 Explorer 0 Win Type - Total 7 Types 4/0/3/0/0/0/0/0/0 Lore% 67 Gallery% 85 Achievement% 69 Wizard Run 0 Options --------- Layout 2 ASCII 0 Keyboard 0 Movement Mouse Keybinds 0 Fullscreen 2 Font 24/Smallcaps Map View 50x44 Zoom Use 0% Tactical HUD 1 Map Filters NONE Filters NONE Steam 1 RUN: 61865d2e-d5b9-462f-909a-0e2af5bec325